Workbook

Sheet Introduction
A1: Greater London Authority - Circular Economy Statement template
A3: How to use this spreadsheet
A4: This template should be used by planning applicants to fulfil the requirements of the Mayor's Circular Economy (CE) Statement policy set out in London Plan Policy SI 7 'Reducing waste and supporting the Circular Economy’. Before completing and submitting this spreadsheet to the GLA, applicants should read the CE statement guidance: https://www.london.gov.uk/what-we-do/planning/implementing-london-plan/london-plan-guidance-and-spgs/circular-economy-statement-guidance-consultation-draft
A6: Applicant are required to submit CE statement information to the GLA at the following three stages: pre-applicaton, outline/detailed planning submission and post-construction. Separate tabs are provided in this spreadsheet for each stage. An outline of the information required at each stage and how to submit it is provided below. Please enter information to the light yellow-coloured cells only, do not enter information in the grey cells as these will be automatically calculated. The light green-coloured cells should be completed to achieve 'pioneering' status.
A8: 1. Pre-application stage
A9: At pre-application stage, applicants are required to complete the pre-application information tab of this template which requires applicants to confirm details about the site and to provide details of the circular economy design approaches that are informing the existing and new development (including by building layer for the latter). All tables should be completed. This should be submitted to the GLA along with all other pre-application material.
A11: 2. Outline/detailed planning submission stage
A12: At this stage, applicants are required to complete the outline or detailed planning stage tab of this template (whichever is relevant) and submit it to the GLA along with their planning application. Applicants are required to complete all tables, including the Bill of Materials and Recycling and Waste Reporting tables. Please enter information to the light yellow-coloured cells only, do not enter information in the grey cells as these will be automatically calculated. The light green-coloured cells should be completed to achieve 'pioneering' status.
A14: 3. Post-construction stage
A15: At the final stage of the CE statement process, applicants should complete the post-construction tab of this template and submit it to the GLA within three months of practical completion. This will require an update of the information provided at planning submission stage and for the actual figures to be reported using actual material quantities during construction. Information should be submitted to: circulareconomystatements@london.gov.uk
A17: Queries
A18: Any queries or feedback on this template should be submitted to:
A19: circulareconomystatements@london.gov.uk
A22: Requirement by application stage (see relevant section of guidance for more information) | B22: Pre-application stage (suggested) | C22: Outline application[1] | D22: Full application / reserved matters[2] | E22: Post-construction | F22: Checklist | G22: Information Reference (Please indicate whether this has been included in the report to accompany this template or as a separate submission)
A23: CE targets (see section 4.2) | B23: Encouraged | C23: Yes | D23: Yes | E23: Yes (Performance reported) | G23: Evidence in CES template spreadsheet
A24: CE design approaches (see sections 2.3 - 2.5 and 4.3) | B24: Yes | C24: Yes | D24: Yes | E24: N/A | G24: Evidence in CES template spreadsheet
A25: CE design principles (see sections 2.1, 4.4 - 4.5) | B25: Yes | C25: No | D25: No | E25: No | G25: Evidence in CES template spreadsheet
A26: CE design principles by building layer (see sections 4.5) | B26: No | C26: Yes | D26: Yes | E26: No | G26: Evidence in CES template spreadsheet
A27: Pre-redevelopment audit (see section 4.6) | B27: Encouraged | C27: Yes | D27: Yes | E27: N/A
A28: Pre-demolition audit (see section 4.6) | B28: Encouraged | C28: Yes | D28: Yes | E28: N/A
A29: Bill of materials (including calculations – see section 4.7) | B29: No | C29: Yes (Estimated) | D29: Yes (Estimated) | E29: Yes (Actual) | G29: Evidence in CES template spreadsheet
A30: End of life strategy (see section 4.7) | B30: No | C30: No | D30: Yes | E30: Encouraged
A31: Operational waste management plan (see section 4.8) | B31: No | C31: No | D31: Yes | E31: Encouraged
A32: Recycling and waste reporting (see Section 4.9) | B32: No | C32: Yes (Estimated) | D32: Yes (Estimated) | E32: Yes (Actual) | G32: Evidence in CES template spreadsheet
A33: Lessons learnt and key achievements (see section 4.10) | B33: N/A | C33: N/A | D33: N/A | E33: Yes | G33: Evidence in CES template spreadsheet
A35: [1] Also applicable to the outline and detailed part of hybrid applications.
A36: [2] Also applicable to the outline and detailed part of hybrid applications.

Sheet Pre-App Stage
A4: Pre-Application Stage - Circular Economy Statement
D6: Project Details
C7: Project name
C8: Planning application reference number (if applicable)
C9: Applicant
C10: London Borough
C11: Brief description of the project
C12: Author/s
C13: Date of assessment
C14: Number of Use Types
C15: Use Class / Type | D15: Floor Area by use type (m2)
C16: Use Class / Type 1 | D16: Use Class / Type 1 GIA
C17: Use Class / Type 2 | D17: Use Class / Type 2 GIA
C18: Use Class / Type 3 | D18: Use Class / Type 3 GIA
C19: Use Class / Type 4 | D19: Use Class / Type 4 GIA
C20: Use Class / Type 5 | D20: Use Class / Type 5 GIA
C21: Use Class / Type 6 | D21: Use Class / Type 6 GIA
C22: Use Class / Type 7 | D22: Use Class / Type 7 GIA
C23: Use Class / Type 8 | D23: Use Class / Type 8 GIA
C24: Use Class / Type 9 | D24: Use Class / Type 9 GIA
C25: Use Class / Type 10 | D25: Use Class / Type 10 GIA
C26: Use Class / Type 11 | D26: Use Class / Type 11 GIA
C27: Use Class / Type 12 | D27: Use Class / Type 12 GIA
C28: Use Class / Type 13 | D28: Use Class / Type 13 GIA
C29: Use Class / Type 14 | D29: Use Class / Type 14 GIA
C30: Use Class / Type 15 | D30: Use Class / Type 15 GIA
C31: Overall GIA (m2) | D31: =SUM(D16:D30) -> 0
B34: Circular Economy Design Approaches
B35: Circular Economy Design Approaches for Existing Structures / Buildings | D35: Applicant Response
B36: Is there an existing building on the site?
B37: Is it technically feasible to retain the building(s) in whole or in part?
B38: Are there any building materials or elements available on site that can be used?
B39: Is the existing building, or parts of the building, suited to the requirements for the site?
B40: Is it technically feasible to recover the 'residual value' of the buildings elements or materials?
B41: The preferred strategy is: | D41: NEW BUILDING
B42: The preferred strategy is: | D42: RETAIN and RETROFIT
B43: The preferred strategy is: | D43: PARTIAL RETENTION and REFURBISHMENT
B44: The preferred strategy is: | D44: DISASSEMBLE/DECONSTRUCT AND REUSE
B45: The preferred strategy is: | D45: DEMOLISH/DECONSTRUCT AND RECYCLE
B46: Circular Economy Design Approach | C46: Phase / Building / Area / Layer | D46: Strategic Response
B47: Retain and Retrofit
B48: Partial Retention and Refurbishment
B49: Disassemble and Reuse
B50: Demolish and Recycle
B51: Circular Economy Design Approaches for New Buildings, Infrastructure and Layers Over the Lifetime of the Development | D51: Applicant Response
B52: Is the whole building designed to have a short life on its current site? (e.g. less than 10 yrs)
B53: Is there likely to be a need for building of a similar size (etc.) in different locations in the future?
B54: Is it foreseeable that the building will need to change use/function within its design life?
B55: The preferred strategy is: | D55: Design for BUILDING RELOCATION
B56: The preferred strategy is: | D56: Design for COMPONENT / MATERIAL REUSE
B57: The preferred strategy is: | D57: Design for ADAPTABILITY
B58: All developments should apply the 6 Circular Economy principles, including: | D58: Designing for DISASSEMBLY and ADAPTABILITY, MATERIAL REUSE ON-SITE and/or RECYCLING should be maximised
B59: Circular Economy Design Approach | C59: Phase / Building / Area / Layer | D59: Strategic Response
B60: Building relocation
B61: Component or material reuse
B62: Adaptability
B63: Flexibility
B64: Replaceability
B65: Disassembly
B66: Longevity
B70: Circular Economy Design Principles
B71: Design Principle | E71: Phase / Building / Area / Layer | G71: Design Response
B72: Designing out waste | D72: Module A - Product Sourcing and Construction Stage
D73: Module B - In-Use Stage
D74: Module C - End-of-Life Stage
D75: Module D - Benefits and Loads Beyond the System Boundary
B76: Designing for longevity
B77: Designing for adaptability or flexibility
B78: Designing for disassembly
B79: Using systems, elements or materials that can be re-used and recycled
B82: Circular Economy Targets
B83: Circular economy targets for existing and new development | D83: Policy Requirement | E83: Target Aiming For (%) | F83: Policy Met?
B84: Demolition waste materials (non-hazardous) | D84: Minimum of 95% diverted from landfill for reuse, recycling or recovery. | F84: =IF(ISNUMBER(E84),IF(E84=95%,"Yes",IF(E84>95%,"Exceeds Policy","No")),"") -> 
B85: Excavation waste materials | D85: Minimum of 95% diverted from landfill for beneficial reuse. | F85: =IF(ISNUMBER(E85),IF(E85=95%,"Yes",IF(E85>95%,"Exceeds Policy","No")),"") -> 
B86: Construction waste materials | D86: Minimum of 95% diverted from landfill for reuse, recycling or recovery. | F86: =IF(ISNUMBER(E86),IF(E86=95%,"Yes",IF(E86>95%,"Exceeds Policy","No")),"") -> 
B87: Municipal waste | D87: Minimum 65% recycling rate by 2030. | F87: =IF(ISNUMBER(E87),IF(E87=65%,"Yes",IF(E87>65%,"Exceeds Policy","No")),"") -> 
B88: Recycled content | D88: Minimum 20% of the building material elements to be comprised of recycled or reused content. | F88: =IF(ISNUMBER(E88),IF(E88=20%,"Yes",IF(E88>20%,"Exceeds Policy","No")),"") -> 

Sheet Outline Application Stage
A4: Outline Application Stage - Circular Economy Statement
D6: Project Details
C7: Project name
C8: Planning application reference number (if applicable)
C9: Applicant
C10: London Borough
C11: Brief description of the project
C12: Author/s
C13: Date of assessment
C14: Number of Use Types
C15: Use Class / Type | D15: Floor Area by use type (m2)
C16: Use Class / Type 1 | D16: Use Class / Type 1 GIA
C17: Use Class / Type 2 | D17: Use Class / Type 2 GIA
C18: Use Class / Type 3 | D18: Use Class / Type 3 GIA
C19: Use Class / Type 4 | D19: Use Class / Type 4 GIA
C20: Use Class / Type 5 | D20: Use Class / Type 5 GIA
C21: Use Class / Type 6 | D21: Use Class / Type 6 GIA
C22: Use Class / Type 7 | D22: Use Class / Type 7 GIA
C23: Use Class / Type 8 | D23: Use Class / Type 8 GIA
C24: Use Class / Type 9 | D24: Use Class / Type 9 GIA
C25: Use Class / Type 10 | D25: Use Class / Type 10 GIA
C26: Use Class / Type 11 | D26: Use Class / Type 11 GIA
C27: Use Class / Type 12 | D27: Use Class / Type 12 GIA
C28: Use Class / Type 13 | D28: Use Class / Type 13 GIA
C29: Use Class / Type 14 | D29: Use Class / Type 14 GIA
C30: Use Class / Type 15 | D30: Use Class / Type 15 GIA
C31: Overall GIA (m2) | D31: =SUM(D16:D30) -> 0
B34: Circular Economy Design Approaches
B35: Circular Economy Design Approaches for Existing Structures / Buildings | D35: Applicant Response
B36: Is there an existing building on the site?
B37: Is it technically feasible to retain the building(s) in whole or in part?
B38: Are there any building materials or elements available on site that can be used?
B39: Is the existing building, or parts of the building, suited to the requirements for the site?
B40: Is it technically feasible to recover the 'residual value' of the buildings elements or materials?
B41: The preferred strategy is: | D41: NEW BUILDING
B42: The preferred strategy is: | D42: RETAIN and RETROFIT
B43: The preferred strategy is: | D43: PARTIAL RETENTION and REFURBISHMENT
B44: The preferred strategy is: | D44: DISASSEMBLE/DECONSTRUCT AND REUSE
B45: The preferred strategy is: | D45: DEMOLISH/DECONSTRUCT AND RECYCLE
B46: Circular Economy Design Approach | C46: Phase/Building/Area/Layer | D46: Strategic Response
B47: Retain and Retrofit
B48: Partial Retention and Refurbishment
B49: Disassemble and Reuse
B50: Demolish and Recycle
B51: Circular Economy Design Approaches for New Buildings, Infrastructure and Layers Over the Lifetime of the Development | D51: Applicant Response
B52: Is the whole building designed to have a short life on its current site? (e.g. less than 10 yrs)
B53: Is there likely to be a need for building of a similar size (etc.) in different locations in the future?
B54: Is it foreseeable that the building will need to change use/function within its design life?
B55: The preferred strategy is: | D55: Design for BUILDING RELOCATION
B56: The preferred strategy is: | D56: Design for COMPONENT / MATERIAL REUSE
B57: The preferred strategy is: | D57: Design for ADAPTABILITY
B58: All developments should apply the 6 Circular Economy principles, including: | D58: Designing for DISASSEMBLY and ADAPTABILITY, MATERIAL REUSE ON-SITE and/or RECYCLING should be maximised
B59: Circular Economy Design Approach | C59: Phase/Building/Area/Layer | D59: Strategic Response
B60: Building relocation
B61: Component or material reuse
B62: Adaptability
B63: Flexibility
B64: Replaceability
B65: Disassembly
B66: Longevity
B69: Circular Economy Design Principles by Building Layer
B70: The Circular Economy Design Principles by Building Layer table should consider where the Applicant seeks to go beyond standard practice. If there are multiple phases / buildings / areas with different measures / strategies, please specify these separately within the table below.
E71: Building Layer | M71: Summary | N71: Challenges | O71: Actions & Counter-Actions, Who and When | P71: Plan to Prove and Quantify
E72: Site | F72: Substructure | G72: Superstructure | H72: Shell/Skin | I72: Services | J72: Space | K72: Stuff | L72: Construction Stuff
B73: 1. Is it likely the layer (or components within it) will need to be moved or otherwise modified within 5-15 years, e.g. due to changing use patterns or user requirements? | E73: N/A | L73: N/A
B74: 2. Is it likely the layer (or components within it) will need to be changed, upgraded or replaced within 5-15 years, e.g. for improved performance, aesthetics | E74: N/A | L74: N/A
B75: The preferred strategy is: | E75: - | F75: =IF(F73="Yes","Design for FLEXIBILITY",IF(F74="Yes","Design for REPLACEABILITY",IF(AND(F73="No",F74="No"),"Design for ADAPTABILITY",""))) ->  | G75: =IF(G73="Yes","Design for FLEXIBILITY",IF(G74="Yes","Design for REPLACEABILITY",IF(AND(G73="No",G74="No"),"Design for ADAPTABILITY",""))) ->  | L75: -
B76: Design Principles | E76: All developments should apply the 6 circular economy principles, including designing for DISASSEMBLY and ADAPTABILITY, MATERIAL REUSE ON-SITE and/or RECYCLING should be maximised.
B77: Designing out waste | D77: Module A - Product Sourcing and Construction Stage
D78: Module B - In-Use Stage
D79: Module C - End-of-Life Stage
D80: Module D - Benefits and Loads Beyond the System Boundary
B81: Designing for longevity
B82: Designing for adaptability or flexibility
B83: Designing for disassembly
B84: Using systems, elements or materials that can be re-used and recycled
B87: Bill of Materials
B88: Please click the + symbol to the left hand side of the Bill of Materials table to view or hide the input rows for each Building Element Category. The rows for substructure and frame have been unhidden to highlight this. A fixed number of rows has been provided for each Building Element Category based on a sub-set of typical WLCA submissions. Should the number of rows provided not be sufficient to allow input of all materials for a given Building Element Category, Applicants should prioritise the inclusion of the materials with the highest quantity.
C89: BUILDING ELEMENT CATEGORY - LEVEL 1 (based on the RICS New Rules of Measurement (NRM) classification system level 2 sub-elements https://www.rics.org/globalassets/rics-website/media/products/data-products/bcis-construction/bcis-elemental-standard-form-cost-analysis-4th-nrm-edition-2012.pdf) | E89: PRODUCT AND CONSTRUCTION STAGE (MODULE A) | M89: USE STAGE (MODULE B) | R89: END OF LIFE STAGE (MODULE C) | W89: BENEFITS BEYOND THE SYSTEM BOUNDARY (MODULE D)
C90: Building Element Category | E90: Material Type | F90: Material quantity (Module A) (kg) | G90: Material intensity (Module A) (kg/m2 GIA) | H90: Performance Indicator (LPG Appendix 1) | I90: Construction Waste Factor (Module A) | J90: Construction Waste (Module A) (kg) | K90: Recycled Content by mass (kg) | L90: Recycled Content by value (%) | M90: Expected Lifespan (years) | N90: Number of Replacements (over assumed 60-year period) | O90: Repair and Replacement quantities of materials (Module B) (kg) | P90: Construction Waste Factor (Module B) | Q90: Construction Waste (Module B) (kg) | R90: Design for Disassembly | S90: Assumed End of Life Scenario (Description) | T90: % Reusing | U90: % Recycling | V90: % Landfill | W90: Estimated reusable materials (kg) | X90: Estimated reusable materials intensity (kg/m2 GIA) | Y90: Estimated recyclable materials (kg) | Z90: Estimated recyclable materials intensity (kg/m2 GIA)
B91: 0.1 | C91: Demolition: Toxic/Hazardous/Contaminated Material Treatment | E91: - | F91: =SUM(F92:F106) -> 0 | G91: =IF(AND(F91<>0,$D$31<>0),F91/$D$31,0) -> 0 | H91: - | I91: - | J91: =SUM(J92:J106) -> 0 | K91: - | L91: - | M91: - | N91: - | O91: =SUM(O92:O106) -> 0 | P91: - | Q91: =SUM(Q92:Q106) -> 0 | R91: - | S91: - | T91: =IF(W91<>0,W91/($F$91+$O$91),0) -> 0 | U91: =IF(Y91<>0,Y91/($F$91+$O$91),0) -> 0 | V91: =1-T91-U91 -> 1 | W91: =SUM(W92:W106) -> 0 | X91: =IF(AND(W91<>0,$D$31<>0),W91/$D$31,0) -> 0 | Y91: =SUM(Y92:Y106) -> 0 | Z91: =IF(AND(Y91<>0,$D$31<>0),Y91/$D$31,0) -> 0
B92: 0.1 | C92: Demolition: Toxic/Hazardous/Contaminated Material Treatment | G92: =IF(AND(F92<>0,$D$31<>0),F92/$D$31,0) -> 0 | H92: - | I92: 0 | J92: =F92*I92 -> 0 | N92: =IF(M92<>0,INT(59/M92),0) -> 0 | O92: =F92*N92 -> 0 | P92: 0 | Q92: =O92*P92 -> 0 | T92: 0 | U92: 0 | V92: =1-T92-U92 -> 1 | W92: =T92*(F92+O92) -> 0 | X92: =IF(AND(W92<>0,$D$31<>0),W92/$D$31,0) -> 0 | Y92: =U92*(F92+O92) -> 0 | Z92: =IF(AND(Y92<>0,$D$31<>0),Y92/$D$31,0) -> 0
G93: =IF(AND(F93<>0,$D$31<>0),F93/$D$31,0) -> 0 | H93: - | I93: 0 | J93: =F93*I93 -> 0 | N93: =IF(M93<>0,INT(59/M93),0) -> 0 | O93: =F93*N93 -> 0 | P93: 0 | Q93: =O93*P93 -> 0 | T93: 0 | U93: 0 | V93: =1-T93-U93 -> 1 | W93: =T93*(F93+O93) -> 0 | X93: =IF(AND(W93<>0,$D$31<>0),W93/$D$31,0) -> 0 | Y93: =U93*(F93+O93) -> 0 | Z93: 0
G94: 0 | H94: - | I94: 0 | J94: 0 | N94: 0 | O94: 0 | P94: 0 | Q94: 0 | T94: 0 | U94: 0 | V94: 1 | W94: 0 | X94: 0 | Y94: 0 | Z94: 0
G95: 0 | H95: - | I95: 0 | J95: 0 | N95: 0 | O95: 0 | P95: 0 | Q95: 0 | T95: 0 | U95: 0 | V95: 1 | W95: 0 | X95: 0 | Y95: 0 | Z95: 0
G96: 0 | H96: - | I96: 0 | J96: 0 | N96: 0 | O96: 0 | P96: 0 | Q96: 0 | T96: 0 | U96: 0 | V96: 1 | W96: 0 | X96: 0 | Y96: 0 | Z96: 0
G97: 0 | H97: - | I97: 0 | J97: 0 | N97: 0 | O97: 0 | P97: 0 | Q97: 0 | T97: 0 | U97: 0 | V97: 1 | W97: 0 | X97: 0 | Y97: 0 | Z97: 0
G98: 0 | H98: - | I98: 0 | J98: 0 | N98: 0 | O98: 0 | P98: 0 | Q98: 0 | T98: 0 | U98: 0 | V98: 1 | W98: 0 | X98: 0 | Y98: 0 | Z98: 0
G99: 0 | H99: - | I99: 0 | J99: 0 | N99: 0 | O99: 0 | P99: 0 | Q99: 0 | T99: 0 | U99: 0 | V99: 1 | W99: 0 | X99: 0 | Y99: 0 | Z99: 0
G100: 0 | H100: - | I100: 0 | J100: 0 | N100: 0 | O100: 0 | P100: 0 | Q100: 0 | T100: 0 | U100: 0 | V100: 1 | W100: 0 | X100: 0 | Y100: 0 | Z100: 0
G101: 0 | H101: - | I101: 0 | J101: 0 | N101: 0 | O101: 0 | P101: 0 | Q101: 0 | T101: 0 | U101: 0 | V101: 1 | W101: 0 | X101: 0 | Y101: 0 | Z101: 0
G102: 0 | H102: - | I102: 0 | J102: 0 | N102: 0 | O102: 0 | P102: 0 | Q102: 0 | T102: 0 | U102: 0 | V102: 1 | W102: 0 | X102: 0 | Y102: 0 | Z102: 0
G103: 0 | H103: - | I103: 0 | J103: 0 | N103: 0 | O103: 0 | P103: 0 | Q103: 0 | T103: 0 | U103: 0 | V103: 1 | W103: 0 | X103: 0 | Y103: 0 | Z103: 0
G104: 0 | H104: - | I104: 0 | J104: 0 | N104: 0 | O104: 0 | P104: 0 | Q104: 0 | T104: 0 | U104: 0 | V104: 1 | W104: 0 | X104: 0 | Y104: 0 | Z104: 0
G105: 0 | H105: - | I105: 0 | J105: 0 | N105: 0 | O105: 0 | P105: 0 | Q105: 0 | T105: 0 | U105: 0 | V105: 1 | W105: 0 | X105: 0 | Y105: 0 | Z105: 0
G106: 0 | H106: - | I106: 0 | J106: 0 | N106: 0 | O106: 0 | P106: 0 | Q106: 0 | T106: 0 | U106: 0 | V106: 1 | W106: 0 | X106: 0 | Y106: 0 | Z106: 0
B107: 0.2 | C107: Major Demolition Works | E107: - | F107: =SUM(F108:F122) -> 0 | G107: =IF(AND(F107<>0,$D$31<>0),F107/$D$31,0) -> 0 | H107: - | I107: - | J107: =SUM(J108:J122) -> 0 | K107: - | L107: - | M107: - | N107: - | O107: =SUM(O108:O122) -> 0 | P107: - | Q107: =SUM(Q108:Q122) -> 0 | R107: - | S107: - | T107: =IF(W107<>0,W107/($F$107+$O$107),0) -> 0 | U107: =IF(Y107<>0,Y107/($F$107+$O$107),0) -> 0 | V107: =1-T107-U107 -> 1 | W107: =SUM(W108:W122) -> 0 | X107: 0 | Y107: =SUM(Y108:Y122) -> 0 | Z107: 0
B108: 0.2 | C108: Major Demolition Works | G108: =IF(AND(F108<>0,$D$31<>0),F108/$D$31,0) -> 0 | H108: - | I108: 0 | J108: =I108*F108 -> 0 | N108: =IF(M108<>0,INT(59/M108),0) -> 0 | O108: =F108*N108 -> 0 | P108: 0 | Q108: =O108*P108 -> 0 | T108: 0 | U108: 0 | V108: 1 | W108: 0 | X108: 0 | Y108: 0 | Z108: 0
G109: =IF(AND(F109<>0,$D$31<>0),F109/$D$31,0) -> 0 | H109: - | I109: 0 | J109: 0 | N109: =IF(M109<>0,INT(59/M109),0) -> 0 | O109: =F109*N109 -> 0 | P109: 0 | Q109: =O109*P109 -> 0 | T109: 0 | U109: 0 | V109: 1 | W109: 0 | X109: 0 | Y109: 0 | Z109: 0
G110: =IF(AND(F110<>0,$D$31<>0),F110/$D$31,0) -> 0 | H110: - | I110: 0 | J110: 0 | N110: 0 | O110: 0 | P110: 0 | Q110: 0 | T110: 0 | U110: 0 | V110: 1 | W110: 0 | X110: 0 | Y110: 0 | Z110: 0
G111: 0 | H111: - | I111: 0 | J111: 0 | N111: 0 | O111: 0 | P111: 0 | Q111: 0 | T111: 0 | U111: 0 | V111: 1 | W111: 0 | X111: 0 | Y111: 0 | Z111: 0
G112: 0 | H112: - | I112: 0 | J112: 0 | N112: 0 | O112: 0 | P112: 0 | Q112: 0 | T112: 0 | U112: 0 | V112: 1 | W112: 0 | X112: 0 | Y112: 0 | Z112: 0
G113: 0 | H113: - | I113: 0 | J113: 0 | N113: 0 | O113: 0 | P113: 0 | Q113: 0 | T113: 0 | U113: 0 | V113: 1 | W113: 0 | X113: 0 | Y113: 0 | Z113: 0
G114: 0 | H114: - | I114: 0 | J114: 0 | N114: 0 | O114: 0 | P114: 0 | Q114: 0 | T114: 0 | U114: 0 | V114: 1 | W114: 0 | X114: 0 | Y114: 0 | Z114: 0
G115: 0 | H115: - | I115: 0 | J115: 0 | N115: 0 | O115: 0 | P115: 0 | Q115: 0 | T115: 0 | U115: 0 | V115: 1 | W115: 0 | X115: 0 | Y115: 0 | Z115: 0
G116: 0 | H116: - | I116: 0 | J116: 0 | N116: 0 | O116: 0 | P116: 0 | Q116: 0 | T116: 0 | U116: 0 | V116: 1 | W116: 0 | X116: 0 | Y116: 0 | Z116: 0
G117: 0 | H117: - | I117: 0 | J117: 0 | N117: 0 | O117: 0 | P117: 0 | Q117: 0 | T117: 0 | U117: 0 | V117: 1 | W117: 0 | X117: 0 | Y117: 0 | Z117: 0
G118: 0 | H118: - | I118: 0 | J118: 0 | N118: 0 | O118: 0 | P118: 0 | Q118: 0 | T118: 0 | U118: 0 | V118: 1 | W118: 0 | X118: 0 | Y118: 0 | Z118: 0
G119: 0 | H119: - | I119: 0 | J119: 0 | N119: 0 | O119: 0 | P119: 0 | Q119: 0 | T119: 0 | U119: 0 | V119: 1 | W119: 0 | X119: 0 | Y119: 0 | Z119: 0
G120: 0 | H120: - | I120: 0 | J120: 0 | N120: 0 | O120: 0 | P120: 0 | Q120: 0 | T120: 0 | U120: 0 | V120: 1 | W120: 0 | X120: 0 | Y120: 0 | Z120: 0
G121: 0 | H121: - | I121: 0 | J121: 0 | N121: 0 | O121: 0 | P121: 0 | Q121: 0 | T121: 0 | U121: 0 | V121: 1 | W121: 0 | X121: 0 | Y121: 0 | Z121: 0
G122: 0 | H122: - | I122: 0 | J122: 0 | N122: 0 | O122: 0 | P122: 0 | Q122: 0 | T122: 0 | U122: 0 | V122: 1 | W122: 0 | X122: 0 | Y122: 0 | Z122: 0
B123: 0.3 | C123: Temporary Support to Adjacent Structures | E123: - | F123: =SUM(F124:F138) -> 0 | G123: =IF(AND(F123<>0,$D$31<>0),F123/$D$31,0) -> 0 | H123: - | I123: - | J123: =SUM(J124:J138) -> 0 | K123: - | L123: - | M123: - | N123: - | O123: =SUM(O124:O138) -> 0 | P123: - | Q123: =SUM(Q124:Q138) -> 0 | R123: - | S123: - | T123: =IF(W123<>0,W123/($F$123+$O$123),0) -> 0 | U123: =IF(Y123<>0,Y123/($F$123+$O$123),0) -> 0 | V123: 1 | W123: =SUM(W124:W138) -> 0 | X123: 0 | Y123: =SUM(Y124:Y138) -> 0 | Z123: 0
B124: 0.3 | C124: Temporary Support to Adjacent Structures | G124: =IF(AND(F124<>0,$D$31<>0),F124/$D$31,0) -> 0 | H124: - | I124: 0 | J124: =I124*F124 -> 0 | N124: =IF(M124<>0,INT(59/M124),0) -> 0 | O124: =F124*N124 -> 0 | P124: 0 | Q124: =O124*P124 -> 0 | T124: 0 | U124: 0 | V124: 1 | W124: 0 | X124: 0 | Y124: 0 | Z124: 0
G125: =IF(AND(F125<>0,$D$31<>0),F125/$D$31,0) -> 0 | H125: - | I125: 0 | J125: 0 | N125: =IF(M125<>0,INT(59/M125),0) -> 0 | O125: =F125*N125 -> 0 | P125: 0 | Q125: =O125*P125 -> 0 | T125: 0 | U125: 0 | V125: 1 | W125: 0 | X125: 0 | Y125: 0 | Z125: 0
G126: =IF(AND(F126<>0,$D$31<>0),F126/$D$31,0) -> 0 | H126: - | I126: 0 | J126: 0 | N126: 0 | O126: 0 | P126: 0 | Q126: 0 | T126: 0 | U126: 0 | V126: 1 | W126: 0 | X126: 0 | Y126: 0 | Z126: 0
G127: 0 | H127: - | I127: 0 | J127: 0 | N127: 0 | O127: 0 | P127: 0 | Q127: 0 | T127: 0 | U127: 0 | V127: 1 | W127: 0 | X127: 0 | Y127: 0 | Z127: 0
G128: 0 | H128: - | I128: 0 | J128: 0 | N128: 0 | O128: 0 | P128: 0 | Q128: 0 | T128: 0 | U128: 0 | V128: 1 | W128: 0 | X128: 0 | Y128: 0 | Z128: 0
G129: 0 | H129: - | I129: 0 | J129: 0 | N129: 0 | O129: 0 | P129: 0 | Q129: 0 | T129: 0 | U129: 0 | V129: 1 | W129: 0 | X129: 0 | Y129: 0 | Z129: 0
G130: 0 | H130: - | I130: 0 | J130: 0 | N130: 0 | O130: 0 | P130: 0 | Q130: 0 | T130: 0 | U130: 0 | V130: 1 | W130: 0 | X130: 0 | Y130: 0 | Z130: 0
G131: 0 | H131: - | I131: 0 | J131: 0 | N131: 0 | O131: 0 | P131: 0 | Q131: 0 | T131: 0 | U131: 0 | V131: 1 | W131: 0 | X131: 0 | Y131: 0 | Z131: 0
G132: 0 | H132: - | I132: 0 | J132: 0 | N132: 0 | O132: 0 | P132: 0 | Q132: 0 | T132: 0 | U132: 0 | V132: 1 | W132: 0 | X132: 0 | Y132: 0 | Z132: 0
G133: 0 | H133: - | I133: 0 | J133: 0 | N133: 0 | O133: 0 | P133: 0 | Q133: 0 | T133: 0 | U133: 0 | V133: 1 | W133: 0 | X133: 0 | Y133: 0 | Z133: 0
G134: 0 | H134: - | I134: 0 | J134: 0 | N134: 0 | O134: 0 | P134: 0 | Q134: 0 | T134: 0 | U134: 0 | V134: 1 | W134: 0 | X134: 0 | Y134: 0 | Z134: 0
G135: 0 | H135: - | I135: 0 | J135: 0 | N135: 0 | O135: 0 | P135: 0 | Q135: 0 | T135: 0 | U135: 0 | V135: 1 | W135: 0 | X135: 0 | Y135: 0 | Z135: 0
G136: 0 | H136: - | I136: 0 | J136: 0 | N136: 0 | O136: 0 | P136: 0 | Q136: 0 | T136: 0 | U136: 0 | V136: 1 | W136: 0 | X136: 0 | Y136: 0 | Z136: 0
G137: 0 | H137: - | I137: 0 | J137: 0 | N137: 0 | O137: 0 | P137: 0 | Q137: 0 | T137: 0 | U137: 0 | V137: 1 | W137: 0 | X137: 0 | Y137: 0 | Z137: 0
G138: 0 | H138: - | I138: 0 | J138: 0 | N138: 0 | O138: 0 | P138: 0 | Q138: 0 | T138: 0 | U138: 0 | V138: 1 | W138: 0 | X138: 0 | Y138: 0 | Z138: 0
B139: 0.4 | C139: Specialist Ground Works | E139: - | F139: =SUM(F140:F154) -> 0 | G139: =IF(AND(F139<>0,$D$31<>0),F139/$D$31,0) -> 0 | H139: - | I139: - | J139: =SUM(J140:J154) -> 0 | K139: - | L139: - | M139: - | N139: - | O139: =SUM(O140:O154) -> 0 | P139: - | Q139: =SUM(Q140:Q154) -> 0 | R139: - | S139: - | T139: =IF(W139<>0,W139/($F$139+$O$139),0) -> 0 | U139: =IF(Y139<>0,Y139/($F$139+$O$139),0) -> 0 | V139: 1 | W139: =SUM(W140:W154) -> 0 | X139: 0 | Y139: =SUM(Y140:Y154) -> 0 | Z139: 0
B140: 0.4 | C140: Specialist Ground Works | G140: =IF(AND(F140<>0,$D$31<>0),F140/$D$31,0) -> 0 | H140: - | I140: 0 | J140: =I140*F140 -> 0 | N140: =IF(M140<>0,INT(59/M140),0) -> 0 | O140: =F140*N140 -> 0 | P140: 0 | Q140: =O140*P140 -> 0 | T140: 0 | U140: 0 | V140: 1 | W140: 0 | X140: 0 | Y140: 0 | Z140: 0
G141: =IF(AND(F141<>0,$D$31<>0),F141/$D$31,0) -> 0 | H141: - | I141: 0 | J141: 0 | N141: =IF(M141<>0,INT(59/M141),0) -> 0 | O141: =F141*N141 -> 0 | P141: 0 | Q141: =O141*P141 -> 0 | T141: 0 | U141: 0 | V141: 1 | W141: 0 | X141: 0 | Y141: 0 | Z141: 0
G142: =IF(AND(F142<>0,$D$31<>0),F142/$D$31,0) -> 0 | H142: - | I142: 0 | J142: 0 | N142: 0 | O142: 0 | P142: 0 | Q142: 0 | T142: 0 | U142: 0 | V142: 1 | W142: 0 | X142: 0 | Y142: 0 | Z142: 0
G143: 0 | H143: - | I143: 0 | J143: 0 | N143: 0 | O143: 0 | P143: 0 | Q143: 0 | T143: 0 | U143: 0 | V143: 1 | W143: 0 | X143: 0 | Y143: 0 | Z143: 0
G144: 0 | H144: - | I144: 0 | J144: 0 | N144: 0 | O144: 0 | P144: 0 | Q144: 0 | T144: 0 | U144: 0 | V144: 1 | W144: 0 | X144: 0 | Y144: 0 | Z144: 0
G145: 0 | H145: - | I145: 0 | J145: 0 | N145: 0 | O145: 0 | P145: 0 | Q145: 0 | T145: 0 | U145: 0 | V145: 1 | W145: 0 | X145: 0 | Y145: 0 | Z145: 0
G146: 0 | H146: - | I146: 0 | J146: 0 | N146: 0 | O146: 0 | P146: 0 | Q146: 0 | T146: 0 | U146: 0 | V146: 1 | W146: 0 | X146: 0 | Y146: 0 | Z146: 0
G147: 0 | H147: - | I147: 0 | J147: 0 | N147: 0 | O147: 0 | P147: 0 | Q147: 0 | T147: 0 | U147: 0 | V147: 1 | W147: 0 | X147: 0 | Y147: 0 | Z147: 0
G148: 0 | H148: - | I148: 0 | J148: 0 | N148: 0 | O148: 0 | P148: 0 | Q148: 0 | T148: 0 | U148: 0 | V148: 1 | W148: 0 | X148: 0 | Y148: 0 | Z148: 0
G149: 0 | H149: - | I149: 0 | J149: 0 | N149: 0 | O149: 0 | P149: 0 | Q149: 0 | T149: 0 | U149: 0 | V149: 1 | W149: 0 | X149: 0 | Y149: 0 | Z149: 0
G150: 0 | H150: - | I150: 0 | J150: 0 | N150: 0 | O150: 0 | P150: 0 | Q150: 0 | T150: 0 | U150: 0 | V150: 1 | W150: 0 | X150: 0 | Y150: 0 | Z150: 0
G151: 0 | H151: - | I151: 0 | J151: 0 | N151: 0 | O151: 0 | P151: 0 | Q151: 0 | T151: 0 | U151: 0 | V151: 1 | W151: 0 | X151: 0 | Y151: 0 | Z151: 0
G152: 0 | H152: - | I152: 0 | J152: 0 | N152: 0 | O152: 0 | P152: 0 | Q152: 0 | T152: 0 | U152: 0 | V152: 1 | W152: 0 | X152: 0 | Y152: 0 | Z152: 0
G153: 0 | H153: - | I153: 0 | J153: 0 | N153: 0 | O153: 0 | P153: 0 | Q153: 0 | T153: 0 | U153: 0 | V153: 1 | W153: 0 | X153: 0 | Y153: 0 | Z153: 0
G154: 0 | H154: - | I154: 0 | J154: 0 | N154: 0 | O154: 0 | P154: 0 | Q154: 0 | T154: 0 | U154: 0 | V154: 1 | W154: 0 | X154: 0 | Y154: 0 | Z154: 0
B155: 1 | C155: Substructure | E155: - | F155: =SUM(F156:F175) -> 0 | G155: =IF(AND(F155<>0,$D$31<>0),F155/$D$31,0) -> 0 | H155: =SUMPRODUCT((C91:D454="Substructure")*G91:G454) -> 0 | I155: - | J155: =SUM(J156:J175) -> 0 | K155: - | L155: - | M155: - | N155: - | O155: =SUM(O156:O175) -> 0 | P155: - | Q155: =SUM(Q156:Q175) -> 0 | R155: - | S155: - | T155: =IF(W155<>0,W155/($F$155+$O$155),0) -> 0 | U155: =IF(Y155<>0,Y155/($F$155+$O$155),0) -> 0 | V155: 1 | W155: =SUM(W156:W175) -> 0 | X155: 0 | Y155: =SUM(Y156:Y175) -> 0 | Z155: 0
B156: 1 | C156: Substructure | G156: =IF(AND(F156<>0,$D$31<>0),F156/$D$31,0) -> 0 | H156: - | I156: 0 | J156: =I156*F156 -> 0 | N156: =IF(M156<>0,INT(59/M156),0) -> 0 | O156: =F156*N156 -> 0 | P156: 0 | Q156: =O156*P156 -> 0 | T156: 0 | U156: 0 | V156: 1 | W156: =T156*(F156+O156) -> 0 | X156: 0 | Y156: =U156*(F156+O156) -> 0 | Z156: 0
G157: =IF(AND(F157<>0,$D$31<>0),F157/$D$31,0) -> 0 | H157: - | I157: 0 | J157: 0 | N157: =IF(M157<>0,INT(59/M157),0) -> 0 | O157: =F157*N157 -> 0 | P157: 0 | Q157: =O157*P157 -> 0 | T157: 0 | U157: 0 | V157: =1-T157-U157 -> 1 | W157: 0 | X157: =IF(AND(W157<>0,$D$31<>0),W157/$D$31,0) -> 0 | Y157: 0 | Z157: 0
G158: =IF(AND(F158<>0,$D$31<>0),F158/$D$31,0) -> 0 | H158: - | I158: 0 | J158: 0 | N158: 0 | O158: 0 | P158: 0 | Q158: 0 | T158: 0 | U158: 0 | V158: 1 | W158: 0 | X158: 0 | Y158: 0 | Z158: 0
G159: 0 | H159: - | I159: 0 | J159: 0 | N159: 0 | O159: 0 | P159: 0 | Q159: 0 | T159: 0 | U159: 0 | V159: 1 | W159: 0 | X159: 0 | Y159: 0 | Z159: 0
G160: 0 | H160: - | I160: 0 | J160: 0 | N160: 0 | O160: 0 | P160: 0 | Q160: 0 | T160: 0 | U160: 0 | V160: 1 | W160: 0 | X160: 0 | Y160: 0 | Z160: 0
G161: 0 | H161: - | I161: 0 | J161: 0 | N161: 0 | O161: 0 | P161: 0 | Q161: 0 | T161: 0 | U161: 0 | V161: 1 | W161: 0 | X161: 0 | Y161: 0 | Z161: 0
G162: 0 | H162: - | I162: 0 | J162: 0 | N162: 0 | O162: 0 | P162: 0 | Q162: 0 | T162: 0 | U162: 0 | V162: 1 | W162: 0 | X162: 0 | Y162: 0 | Z162: 0
G163: 0 | H163: - | I163: 0 | J163: 0 | N163: 0 | O163: 0 | P163: 0 | Q163: 0 | T163: 0 | U163: 0 | V163: 1 | W163: 0 | X163: 0 | Y163: 0 | Z163: 0
G164: 0 | H164: - | I164: 0 | J164: 0 | N164: 0 | O164: 0 | P164: 0 | Q164: 0 | T164: 0 | U164: 0 | V164: 1 | W164: 0 | X164: 0 | Y164: 0 | Z164: 0
G165: 0 | H165: - | I165: 0 | J165: 0 | N165: 0 | O165: 0 | P165: 0 | Q165: 0 | T165: 0 | U165: 0 | V165: 1 | W165: 0 | X165: 0 | Y165: 0 | Z165: 0
G166: 0 | H166: - | I166: 0 | J166: 0 | N166: 0 | O166: 0 | P166: 0 | Q166: 0 | T166: 0 | U166: 0 | V166: 1 | W166: 0 | X166: 0 | Y166: 0 | Z166: 0
G167: 0 | H167: - | I167: 0 | J167: 0 | N167: 0 | O167: 0 | P167: 0 | Q167: 0 | T167: 0 | U167: 0 | V167: 1 | W167: 0 | X167: 0 | Y167: 0 | Z167: 0
G168: 0 | H168: - | I168: 0 | J168: 0 | N168: 0 | O168: 0 | P168: 0 | Q168: 0 | T168: 0 | U168: 0 | V168: 1 | W168: 0 | X168: 0 | Y168: 0 | Z168: 0
G169: 0 | H169: - | I169: 0 | J169: 0 | N169: 0 | O169: 0 | P169: 0 | Q169: 0 | T169: 0 | U169: 0 | V169: 1 | W169: 0 | X169: 0 | Y169: 0 | Z169: 0
G170: =IF(AND(F170<>0,$D$31<>0),F170/$D$31,0) -> 0 | H170: - | I170: 0 | J170: 0 | N170: 0 | O170: 0 | P170: 0 | Q170: 0 | T170: 0 | U170: 0 | V170: 1 | W170: 0 | X170: 0 | Y170: 0 | Z170: 0
G171: =IF(AND(F171<>0,$D$31<>0),F171/$D$31,0) -> 0 | H171: - | I171: 0 | J171: 0 | N171: 0 | O171: 0 | P171: 0 | Q171: 0 | T171: 0 | U171: 0 | V171: 1 | W171: 0 | X171: 0 | Y171: 0 | Z171: 0
G172: =IF(AND(F172<>0,$D$31<>0),F172/$D$31,0) -> 0 | H172: - | I172: 0 | J172: 0 | N172: 0 | O172: 0 | P172: 0 | Q172: 0 | T172: 0 | U172: 0 | V172: 1 | W172: 0 | X172: 0 | Y172: 0 | Z172: 0
G173: 0 | H173: - | I173: 0 | J173: 0 | N173: 0 | O173: 0 | P173: 0 | Q173: 0 | T173: 0 | U173: 0 | V173: 1 | W173: 0 | X173: 0 | Y173: 0 | Z173: 0
G174: 0 | H174: - | I174: 0 | J174: 0 | N174: 0 | O174: 0 | P174: 0 | Q174: 0 | T174: 0 | U174: 0 | V174: 1 | W174: 0 | X174: 0 | Y174: 0 | Z174: 0
G175: =IF(AND(F175<>0,$D$31<>0),F175/$D$31,0) -> 0 | H175: - | I175: 0 | J175: 0 | N175: =IF(M175<>0,INT(59/M175),0) -> 0 | O175: 0 | P175: 0 | Q175: 0 | T175: 0 | U175: 0 | V175: 1 | W175: 0 | X175: 0 | Y175: 0 | Z175: 0
B176: 2.1 | C176: Superstructure: Frame | E176: - | F176: =SUM(F177:F196) -> 0 | G176: =IF(AND(F176<>0,$D$31<>0),F176/$D$31,0) -> 0 | H176: =SUMPRODUCT((C91:D454="Superstructure: Frame")*G91:G454) -> 0 | I176: - | J176: =SUM(J177:J196) -> 0 | K176: - | L176: - | M176: - | N176: - | O176: =SUM(O177:O196) -> 0 | P176: - | Q176: =SUM(Q177:Q196) -> 0 | R176: - | S176: - | T176: =IF(W176<>0,W176/($F$176+$O$176),0) -> 0 | U176: =IF(Y176<>0,Y176/($F$176+$O$176),0) -> 0 | V176: 1 | W176: =SUM(W177:W196) -> 0 | X176: 0 | Y176: =SUM(Y177:Y196) -> 0 | Z176: 0
B177: 2.1 | C177: Superstructure: Frame | G177: =IF(AND(F177<>0,$D$31<>0),F177/$D$31,0) -> 0 | H177: - | I177: 0 | J177: =I177*F177 -> 0 | N177: =IF(M177<>0,INT(59/M177),0) -> 0 | O177: =F177*N177 -> 0 | P177: 0 | Q177: =O177*P177 -> 0 | T177: 0 | U177: 0 | V177: 1 | W177: =T177*(F177+O177) -> 0 | X177: 0 | Y177: =U177*(F177+O177) -> 0 | Z177: 0
G178: =IF(AND(F178<>0,$D$31<>0),F178/$D$31,0) -> 0 | H178: - | I178: 0 | J178: 0 | N178: =IF(M178<>0,INT(59/M178),0) -> 0 | O178: =F178*N178 -> 0 | P178: 0 | Q178: =O178*P178 -> 0 | T178: 0 | U178: 0 | V178: 1 | W178: 0 | X178: 0 | Y178: 0 | Z178: 0
G179: =IF(AND(F179<>0,$D$31<>0),F179/$D$31,0) -> 0 | H179: - | I179: 0 | J179: 0 | N179: 0 | O179: 0 | P179: 0 | Q179: 0 | T179: 0 | U179: 0 | V179: 1 | W179: 0 | X179: 0 | Y179: 0 | Z179: 0
G180: 0 | H180: - | I180: 0 | J180: 0 | N180: 0 | O180: 0 | P180: 0 | Q180: 0 | T180: 0 | U180: 0 | V180: 1 | W180: 0 | X180: 0 | Y180: 0 | Z180: 0
G181: 0 | H181: - | I181: 0 | J181: 0 | N181: 0 | O181: 0 | P181: 0 | Q181: 0 | T181: 0 | U181: 0 | V181: 1 | W181: 0 | X181: 0 | Y181: 0 | Z181: 0
G182: 0 | H182: - | I182: 0 | J182: 0 | N182: 0 | O182: 0 | P182: 0 | Q182: 0 | T182: 0 | U182: 0 | V182: 1 | W182: 0 | X182: 0 | Y182: 0 | Z182: 0
G183: 0 | H183: - | I183: 0 | J183: 0 | N183: 0 | O183: 0 | P183: 0 | Q183: 0 | T183: 0 | U183: 0 | V183: 1 | W183: 0 | X183: 0 | Y183: 0 | Z183: 0
G184: 0 | H184: - | I184: 0 | J184: 0 | N184: 0 | O184: 0 | P184: 0 | Q184: 0 | T184: 0 | U184: 0 | V184: 1 | W184: 0 | X184: 0 | Y184: 0 | Z184: 0
G185: 0 | H185: - | I185: 0 | J185: 0 | N185: 0 | O185: 0 | P185: 0 | Q185: 0 | T185: 0 | U185: 0 | V185: 1 | W185: 0 | X185: 0 | Y185: 0 | Z185: 0
G186: 0 | H186: - | I186: 0 | J186: 0 | N186: 0 | O186: 0 | P186: 0 | Q186: 0 | T186: 0 | U186: 0 | V186: 1 | W186: 0 | X186: 0 | Y186: 0 | Z186: 0
G187: 0 | H187: - | I187: 0 | J187: 0 | N187: 0 | O187: 0 | P187: 0 | Q187: 0 | T187: 0 | U187: 0 | V187: 1 | W187: 0 | X187: 0 | Y187: 0 | Z187: 0
G188: 0 | H188: - | I188: 0 | J188: 0 | N188: 0 | O188: 0 | P188: 0 | Q188: 0 | T188: 0 | U188: 0 | V188: 1 | W188: 0 | X188: 0 | Y188: 0 | Z188: 0
G189: 0 | H189: - | I189: 0 | J189: 0 | N189: 0 | O189: 0 | P189: 0 | Q189: 0 | T189: 0 | U189: 0 | V189: 1 | W189: 0 | X189: 0 | Y189: 0 | Z189: 0
G190: 0 | H190: - | I190: 0 | J190: 0 | N190: 0 | O190: 0 | P190: 0 | Q190: 0 | T190: 0 | U190: 0 | V190: 1 | W190: 0 | X190: 0 | Y190: 0 | Z190: 0
G191: =IF(AND(F191<>0,$D$31<>0),F191/$D$31,0) -> 0 | H191: - | I191: 0 | J191: 0 | N191: 0 | O191: 0 | P191: 0 | Q191: 0 | T191: 0 | U191: 0 | V191: 1 | W191: 0 | X191: 0 | Y191: 0 | Z191: 0
G192: =IF(AND(F192<>0,$D$31<>0),F192/$D$31,0) -> 0 | H192: - | I192: 0 | J192: 0 | N192: 0 | O192: 0 | P192: 0 | Q192: 0 | T192: 0 | U192: 0 | V192: 1 | W192: 0 | X192: 0 | Y192: 0 | Z192: 0
G193: =IF(AND(F193<>0,$D$31<>0),F193/$D$31,0) -> 0 | H193: - | I193: 0 | J193: 0 | N193: 0 | O193: 0 | P193: 0 | Q193: 0 | T193: 0 | U193: 0 | V193: 1 | W193: 0 | X193: 0 | Y193: 0 | Z193: 0
G194: =IF(AND(F194<>0,$D$31<>0),F194/$D$31,0) -> 0 | H194: - | I194: 0 | J194: 0 | N194: 0 | O194: 0 | P194: 0 | Q194: 0 | T194: 0 | U194: 0 | V194: 1 | W194: 0 | X194: 0 | Y194: 0 | Z194: 0
G195: 0 | H195: - | I195: 0 | J195: 0 | N195: 0 | O195: 0 | P195: 0 | Q195: 0 | T195: 0 | U195: 0 | V195: 1 | W195: 0 | X195: 0 | Y195: 0 | Z195: 0
G196: 0 | H196: - | I196: 0 | J196: 0 | N196: 0 | O196: 0 | P196: 0 | Q196: 0 | T196: 0 | U196: 0 | V196: 1 | W196: 0 | X196: 0 | Y196: 0 | Z196: 0
B197: 2.2 | C197: Superstructure: Upper Floors | E197: - | F197: =SUM(F198:F217) -> 0 | G197: =IF(AND(F197<>0,$D$31<>0),F197/$D$31,0) -> 0 | H197: =SUMPRODUCT((C176:D459="Superstructure: Upper Floors")*G176:G459) -> 0 | I197: - | J197: =SUM(J198:J217) -> 0 | K197: - | L197: - | M197: - | N197: - | O197: =SUM(O198:O217) -> 0 | P197: - | Q197: =SUM(Q198:Q217) -> 0 | R197: - | S197: - | T197: =IF(W197<>0,W197/($F$197+$O$197),0) -> 0 | U197: =IF(Y197<>0,Y197/($F$197+$O$197),0) -> 0 | V197: 1 | W197: =SUM(W198:W217) -> 0 | X197: 0 | Y197: =SUM(Y198:Y217) -> 0 | Z197: 0
B198: 2.2 | C198: Superstructure: Upper Floors | G198: =IF(AND(F198<>0,$D$31<>0),F198/$D$31,0) -> 0 | H198: - | I198: 0 | J198: =I198*F198 -> 0 | N198: =IF(M198<>0,INT(59/M198),0) -> 0 | O198: =F198*N198 -> 0 | P198: 0 | Q198: =O198*P198 -> 0 | T198: 0 | U198: 0 | V198: 1 | W198: =T198*(F198+O198) -> 0 | X198: 0 | Y198: =U198*(F198+O198) -> 0 | Z198: 0
G199: =IF(AND(F199<>0,$D$31<>0),F199/$D$31,0) -> 0 | H199: - | I199: 0 | J199: 0 | N199: =IF(M199<>0,INT(59/M199),0) -> 0 | O199: =F199*N199 -> 0 | P199: 0 | Q199: =O199*P199 -> 0 | T199: 0 | U199: 0 | V199: 1 | W199: 0 | X199: 0 | Y199: 0 | Z199: 0
G200: =IF(AND(F200<>0,$D$31<>0),F200/$D$31,0) -> 0 | H200: - | I200: 0 | J200: 0 | N200: 0 | O200: 0 | P200: 0 | Q200: 0 | T200: 0 | U200: 0 | V200: 1 | W200: 0 | X200: 0 | Y200: 0 | Z200: 0
G201: 0 | H201: - | I201: 0 | J201: 0 | N201: 0 | O201: 0 | P201: 0 | Q201: 0 | T201: 0 | U201: 0 | V201: 1 | W201: 0 | X201: 0 | Y201: 0 | Z201: 0
G202: 0 | H202: - | I202: 0 | J202: 0 | N202: 0 | O202: 0 | P202: 0 | Q202: 0 | T202: 0 | U202: 0 | V202: 1 | W202: 0 | X202: 0 | Y202: 0 | Z202: 0
G203: 0 | H203: - | I203: 0 | J203: 0 | N203: 0 | O203: 0 | P203: 0 | Q203: 0 | T203: 0 | U203: 0 | V203: 1 | W203: 0 | X203: 0 | Y203: 0 | Z203: 0
G204: 0 | H204: - | I204: 0 | J204: 0 | N204: 0 | O204: 0 | P204: 0 | Q204: 0 | T204: 0 | U204: 0 | V204: 1 | W204: 0 | X204: 0 | Y204: 0 | Z204: 0
G205: 0 | H205: - | I205: 0 | J205: 0 | N205: 0 | O205: 0 | P205: 0 | Q205: 0 | T205: 0 | U205: 0 | V205: 1 | W205: 0 | X205: 0 | Y205: 0 | Z205: 0
G206: 0 | H206: - | I206: 0 | J206: 0 | N206: 0 | O206: 0 | P206: 0 | Q206: 0 | T206: 0 | U206: 0 | V206: 1 | W206: 0 | X206: 0 | Y206: 0 | Z206: 0
G207: 0 | H207: - | I207: 0 | J207: 0 | N207: 0 | O207: 0 | P207: 0 | Q207: 0 | T207: 0 | U207: 0 | V207: 1 | W207: 0 | X207: 0 | Y207: 0 | Z207: 0
G208: 0 | H208: - | I208: 0 | J208: 0 | N208: 0 | O208: 0 | P208: 0 | Q208: 0 | T208: 0 | U208: 0 | V208: 1 | W208: 0 | X208: 0 | Y208: 0 | Z208: 0
G209: 0 | H209: - | I209: 0 | J209: 0 | N209: 0 | O209: 0 | P209: 0 | Q209: 0 | T209: 0 | U209: 0 | V209: 1 | W209: 0 | X209: 0 | Y209: 0 | Z209: 0
G210: 0 | H210: - | I210: 0 | J210: 0 | N210: 0 | O210: 0 | P210: 0 | Q210: 0 | T210: 0 | U210: 0 | V210: 1 | W210: 0 | X210: 0 | Y210: 0 | Z210: 0
... 272 more rows

Sheet Detailed Application Stage
A4: Detailed Application Stage - Circular Economy Statement
D6: Project Details
C7: Project name | D7: Great North Leisure Park
C8: Planning application reference number (if applicable) | D8: ref. 25/0213/FUL
C9: Applicant | D9: Regal London
C10: London Borough | D10: Barnet
C11: Brief description of the project | D11: The redevelopment consists of demolition of existing buildings and phased redevelopment to provide up to 1485 residential dwellings (Use Class C3) across 20 buildings (with links) up to 25 storeys in height; a new 2 storey leisure centre (Use Class E(d)); flexible commercial space (Use Class E); a single storey sports changing pavilion (Use Class F2(c)); and landscaping, parking, access, and associated works.
C12: Author/s | D12: Vector Design
C13: Date of assessment
C14: Number of Use Types
C15: Use Class / Type | D15: Floor Area by use type (m2)
C16: Whole site | D16: =2590+3787.7+122.5+148393 -> 154893.2
C17: Leisure Centre | D17: 100
C18: Use Class / Type 3 | D18: Use Class / Type 3 GIA
C19: Use Class / Type 4 | D19: Use Class / Type 4 GIA
C20: Use Class / Type 5 | D20: Use Class / Type 5 GIA
C21: Use Class / Type 6 | D21: Use Class / Type 6 GIA
C22: Use Class / Type 7 | D22: Use Class / Type 7 GIA
C23: Use Class / Type 8 | D23: Use Class / Type 8 GIA
C24: Use Class / Type 9 | D24: Use Class / Type 9 GIA
C25: Use Class / Type 10 | D25: Use Class / Type 10 GIA
C26: Use Class / Type 11 | D26: Use Class / Type 11 GIA
C27: Use Class / Type 12 | D27: Use Class / Type 12 GIA
C28: Use Class / Type 13 | D28: Use Class / Type 13 GIA
C29: Use Class / Type 14 | D29: Use Class / Type 14 GIA
C30: Residential | D30: Use Class / Type 15 GIA
C31: Overall GIA (m2) | D31: =SUM(D16:D30) -> 154993.2
B34: Circular Economy Design Approaches
B35: Circular Economy Design Approaches for Existing Structures / Buildings | D35: Applicant Response
B36: Is there an existing building on the site? | D36: Yes
B37: Is it technically feasible to retain the building(s) in whole or in part? | D37: No
B38: Are there any building materials or elements available on site that can be used?
B39: Is the existing building, or parts of the building, suited to the requirements for the site?
B40: Is it technically feasible to recover the 'residual value' of the buildings elements or materials? | D40: Yes
B41: The preferred strategy is: | D41: NEW BUILDING
B42: The preferred strategy is: | D42: RETAIN and RETROFIT
B43: The preferred strategy is: | D43: PARTIAL RETENTION and REFURBISHMENT
B44: The preferred strategy is: | D44: DISASSEMBLE/DECONSTRUCT AND REUSE
B45: The preferred strategy is: | D45: DEMOLISH/DECONSTRUCT AND RECYCLE
B46: Circular Economy Design Approach | C46: Phase/Building/Area/Layer | D46: Strategic Response
B47: Retain and Retrofit | C47: Existing buildings on the proposed site | D47: Due to the London Plan requirement to optimise brownfield sites for residential development, and the unsuitability of the existing buildings for this use, these buildings would need to be demolished. Therefore, full retention and retrofit was not a suitable route for this development.
B48: Partial Retention and Refurbishment | C48: Existing buildings on the proposed site | D48: As above
B49: Disassemble and Reuse | C49: Existing buildings on the proposed site | D49: Deconstruction of existing structures and reclaiming components or materials is feasible. However, this only relates to the existing steel on site which will need to be tested to establish its suitability with use on the new development.
B50: Demolish and Recycle | C50: Existing buildings on the proposed site | D50: At this stage in the development, the intention for the existing site is a phase-by-phase demolition or disassembly of existing buildings with waste arisings being reused, downcycled or recycled according to the waste hierarchy. This will be explored a later design stage to see if reuse is feasible over recycling.
B51: Circular Economy Design Approaches for New Buildings, Infrastructure and Layers Over the Lifetime of the Development | D51: Applicant Response
B52: Is the whole building designed to have a short life on its current site? (e.g. less than 10 yrs) | D52: No
B53: Is there likely to be a need for building of a similar size (etc.) in different locations in the future?
B54: Is it foreseeable that the building will need to change use/function within its design life? | D54: No
B55: The preferred strategy is: | D55: Design for BUILDING RELOCATION
B56: The preferred strategy is: | D56: Design for COMPONENT / MATERIAL REUSE
B57: The preferred strategy is: | D57: Design for ADAPTABILITY
B58: All developments should apply the 6 Circular Economy principles, including: | D58: Designing for DISASSEMBLY and ADAPTABILITY, MATERIAL REUSE ON-SITE and/or RECYCLING should be maximised
B59: Circular Economy Design Approach | C59: Phase/Building/Area/Layer | D59: Strategic Response
B60: Building relocation | C60: Proposed buildings | D60: Due to the buildings being intended to be long-term permanent structures on site, building relocation is not applicable
B61: Component or material reuse | C61: Proposed buildings | D61: The buildings are designed to have a long lifespan. Wherever possible, the buildings will be designed so any materials not at the end of their natural life can be reused. Substructure and superstructure materials, for example, have been chosen to allow for recovery and recycling at end of life. The concrete and reinforcement can be separated; concrete can be crushed for use as aggregate and the reinforcement can be recycled back into the steel industry. Before purchasing new products or materials, a circular option is to consider the potential for reuse in procurement. This can be either through the purchase of recovered building components, products and materials (where applicable and suitable) or reuse of building products from within existing building stock.
B62: Adaptability | C62: Proposed buildings | D62: The commercial units are a shell and core design and, as such, can easily be adapted to accommodate different uses. Adaptability is not relevant for residential use, as it is expected there will continue to be demand for such use long into the future
B63: Flexibility | C63: Proposed buildings | D63: The commercial units have been designed as open spaces meaning that they have the flexibility to have multiple uses. Flexibility is not relevant for residential use, as it is expected there will continue to be demand for such use long into the future
B64: Replaceability | C64: Proposed buildings | D64: Certain layers of the building will need to be replaced within the lifespan of the buildings. The design enables this to be done without affecting other layers through the following examples: • Create a suitable and simplified maintenance strategy. Provide safe access to M&E services for maintenance and replacement. • Building materials are designed to last the lifespan of the building or can be replaced/ maintained easily. • Core Building services are provided within a dedicated room with easy access to existing pipework. This facilitates easy maintenance of building services enabling grater repair of units opposed to replacement. This extends product lifespans and reduces the buildings’ embodied carbon emissions.
B65: Disassembly | C65: Proposed buildings | D65: • Substructure and superstructure materials have been chosen to allow for recovery and recycling at end of life. The concrete and reinforcement can be separated; concrete can be crushed for use as aggregate and the reinforcement can be recycled back into the steel industry. • Specify low health impact materials such as low VOC content in paints to facilitate safe disassembly and reuse.
B66: Longevity | C66: Proposed buildings | D66: The development proposals will ensure longevity is prioritised in the design of the building, through informed material selection. Given the predominant use the scheme as residential, it will be unlikely significant change to the overall structure design will take place within the buildings’ lifespans. Therefore, selection of durable and resilient materials is paramount. This is especially true for materials that make up the substructure and superstructure.
B69: Circular Economy Design Principles by Building Layer
B70: The Circular Economy Design Principles by Building Layer table should consider where the Applicant seeks to go beyond standard practice. If there are multiple phases / buildings / areas with different measures / strategies, please specify these separately within the table below.
E71: Building Layer | M71: Summary | N71: Challenges | O71: Actions & Counter-Actions, Who and When | P71: Plan to Prove and Quantify
E72: Site | F72: Substructure | G72: Superstructure | H72: Shell/Skin | I72: Services | J72: Space | K72: Stuff | L72: Construction Stuff
B73: Is it likely the layer (or components within it) will need to be moved or otherwise modified within 5-15 years, e.g. due to changing use patterns or user requirements? | E73: N/A | L73: N/A
B74: Is it likely the layer (or components within it) will need to be changed, upgraded or replaced within 5-15 years, e.g. for improved performance, aesthetics | E74: N/A | L74: N/A
B75: The preferred strategy is: | E75: - | F75: =IF(F73="Yes","Design for FLEXIBILITY",IF(F74="Yes","Design for REPLACEABILITY",IF(AND(F73="No",F74="No"),"Design for ADAPTABILITY",""))) ->  | G75: =IF(G73="Yes","Design for FLEXIBILITY",IF(G74="Yes","Design for REPLACEABILITY",IF(AND(G73="No",G74="No"),"Design for ADAPTABILITY",""))) ->  | L75: -
B76: Design Principles | E76: All developments should apply the 6 circular economy principles, including designing for DISASSEMBLY and ADAPTABILITY, MATERIAL REUSE ON-SITE and/or RECYCLING should be maximised.
B77: Designing out waste | D77: Module A - Product Sourcing and Construction Stage | E77: • Pre-demolition audit to evaluate how materials can be recovered from the existing buildings and hardstanding. Note: vacant possession of these buildings has not been achieved to allow such an audit to take place. • Designing out demolition waste: At least 95% of demolition waste will be recycled/reused following the various demolition protocols and waste hierarchy. Where practicable, demolition. • Managing demolition waste: Where materials cannot be recycled or re-used on site, the demolition contractor will refer to the London Waste Map to consider opportunities for using local sites to manage materials and waste. Following their appointment, the demolition contractor will contact local waste facilities to ensure that local landfill has capacity to receive any construction or demolition waste that cannot be recycled. Prior to commencement of demolition and excavation, a pre-demolition audit will be undertaken to identify the likely waste arisings. This will identify the possibility for activating recovery methods for the different materials present. | F77: • Minimising the quantities of other resources used: The use of an efficient form factor within the design and lowering the building weight, shall help reduce the use of materials in the foundations and lower ground floors, as less concrete and reinforcement steel shall be required as part of their structural design. • Designing out excavation waste: At least 95% of waste from excavation works associated with construction of foundations will be diverted from landfill and put to beneficial use. For example, topsoil will be given special attention due to its high value. • Opportunities to explore: Opportunities will be sought for the excavation waste to be used on site, in other local construction projects or other beneficial uses such as quarry restoration; these options should be prioritised above sending waste to landfill. | G77: • Minimising the quantities of materials used:  Standard window sizing with few different window types proposed across facades.  Lightweight internal wall construction  Efficient building form  Common repeating details  Optimising column spacing • To meet the GLA’s requirements, a minimum 20% of the building material elements are to be comprised of recycled or reused content. • The main contractor will be encouraged to source materials from manufacturers holding EPD certificates, thus further precision can be gained when carrying out Whole Life Carbon (WLC) Assessments. | H77: As per Superstructure. Minimising the quantities of other resources used: As part of the energy strategy of the development, a ‘fabric first’ approach has been considered to reduce the energy demand and CO2 emissions, with all elements targeting an improvement upon the Part L 2021 minimum standards using SAP10 carbon factors. One of the objectives for the building façade for the proposed scheme is to achieve the optimum balance between providing natural daylighting benefits to reduce the use of artificial lighting, the provision of passive solar heating to limit the need for space heating in winter and limiting summertime solar gains to reduce space cooling demands. | I77: Minimising the quantities of other resources used: Building services have been reduced as far as possible by implementing a ‘fabric first’ approach. This approach primarily aims to reduce the heating and cooling requirements of a development, thus reducing the demands required from HVAC systems. | J77: Minimising the quantities of other resources used: By adopting standardised residential units, materials can be used efficiently and reduce waste. | K77: Not in scope of works. | L77: • Minimising the quantities of other resources used: The contractor is to set targets for energy and water used on site and ensure measures are put in place to minimise consumption of these resources. • Minimising the quantities of materials used: Measures will be taken by the main contractor to reduce the amount of packaging used and to coordinate deliveries. This will include agreements with material suppliers to reduce the amount of packaging, to use reusable packaging or to participate in a packaging take-back scheme (e.g. bricks delivered on recycled pallets) and the implementation of a ‘just-in-time’ material delivery system to avoid materials being stockpiled, which would increase the risk of their damage and disposal as waste. In addition, particular attention will be paid to material quantity requirements, to avoid over-ordering and generation of waste materials. • Designing out construction waste: A Site Waste Management Plan has been carried out by Iceni (November). Construction waste will be separated into recyclable waste streams before removal from site for reuse or disposal. | M77: To meet GLA requirements: • Where feasible, demolition waste will be reused on site, with potential for demolished building materials to be reused. • Material efficiency measures will be used to reduce the quantity of new materials procured including reuse of materials wherever feasible, segregation of waste at source where practical, and reuse and recycling of materials off-site, where reuse on-site is not practical (e.g., through use of an offsite waste segregation facility and re-sale for direct reuse or re-processing). • Sourcing materials with Environmental Management Systems/ Building Environmental Systems certificates • Prioritising products having Environmental Product Declaration certificates. • Monitoring energy and water use during construction. • Monitoring transport of materials to and from site. | N77: • To be reviewed and updated at the next project stage once a contractor has been appointed. • Limited availability of manufacturers with certificates. | O77: To be reviewed and updated at the next project stage once a contractor has been appointed. | P77: • Sustainable Procurement Plan • Measuring responsible souring – copies of EMS/BES etc certificates • Monitoring of construction site impacts • Environmental impacts from construction products – copies of EPD certificates • Pre-demolition report • Demolition and Construction Management Plan • Site Waste Management Plan • Whole Life Cycle Assessment • Daylight, Sunlight and Overshadowing Assessment • Architectural Stage 2/3 information • Structural Stage 2/3 information • MEP Stage 2/3 information
D78: Module B - In-Use Stage | E78: Site-level maintenance requirements are minimal; however, landscape and hardstanding materials will be selected, where feasible, to allow repair or partial replacement rather than full removal. | F78: Substructure elements are expected to remain in place for the full life of the building. Waste in use will primarily be minimised through the use of durable, long‑life materials that limit the need for intrusive maintenance or early intervention. | G78: The structural frame is designed to minimise the need for replacement during the building’s life. Opportunities for targeted strengthening or minor alterations, rather than major demolition, will be reviewed if future maintenance issues arise. | H78: As outlined in the Energy & Sustainability Statement, the proposed development aims to reduce the energy demand by implementing the GLA Energy Hierarchy: • Be Lean - use less energy • Be Clean - supply energy efficiently • Be Green - use renewable energy • Be Seen - monitoring | I78: • The proposed development will be fitted with water efficient fixtures and fittings, with water meters provided to enable the monitoring of water consumption. The development shall be designed to achieve mains water consumption of 105 litres or less per head per day (excluding allowance of up to five litres for external water consumption) in line with Policy SI 5 Water Infrastructure of the London Plan 2021. • Building service systems with a significant water demand will have additional water monitoring equipment fitted to them. A leak detection system will be employed on the main water supply • Through either good practice design or specification, a meaningful reduction in the total water demand of the building will be made. • A plant replacement strategy will be developed to ensure that building services equipment can be replaced when required (at end of life) without damage to building fabric or structure. | J78: • Encourage users to adopt low energy / energy efficient equipment to reduce energy demand (included within Building User Guide). • Provide users with advice/methods of how to reduce energy consumption (Building User Guide). | K78: Managing municipal waste: The project has been designed to allow occupiers to achieve the required 65% recycling rate for municipal waste. Separate on-site waste areas will be provided for the proposed development: • Is designed with adequate, flexible, and easily accessible storage space. • Supports the separate collection of dry recyclables (e.g. – paper, mixed plastics, metals, glass etc.). • Supports the separate collection of food waste. The operational waste will be managed in accordance with the waste hierarchy. The principal contractor will follow the ‘Mayor’s Business Waste Management Strategy’ to reduce the amount of waste generated. A Building User Guide shall be provided, which will include information on how, when and where building occupiers should store and deposit recyclables and dispose of waste and promote recycling. | L78: N/A | M78: To meet the GLA >65% recycling of municipal rate target, the following measures will be adopted: • Non-technical Building User Guide • Building operational energy and water to be sub metered as appropriate | N78: To be reviewed and updated at the next project stage once a contractor has been appointed. | O78: To be reviewed and updated at the next project stage once a contractor has been appointed. | P78: • Building User Guide • Operational energy and water targets will be implemented • Contractor to appoint nominated individual to monitor construction energy and water use • Plant Replacement Strategy • Operational Waste Management Plan /Strategy • Delivery and Servicing Management Plan
D79: Module C - End-of-Life Stage | E79: The proposed development has been designed for repurpose and independent replacement of individual elements, due to their design life periods, as most building elements have a service life < 60 years and will be replaced at least once over the building’s 60-year lifespan. An approach of ‘building in layers’ is proposed to ensure that layers with shorter lifespans can be replaced without damage to layers which have longer lifespans – for example, building services will be designed and installed with dedicated access for maintenance/replacement, so that there is minimal disruption to the substructure/superstructure of the development. The following principles will be implemented to ensure materials can be recovered in as high a value state as possible at end of life: • Durability • Design for Disassembly • Material Passports • Layer Independence • Standardisation | F79: The substructure incorporates durable, long‑life concrete mixes and corrosion‑resistant reinforcement to minimise end‑of‑life interventions. Excavation and foundation materials will be recorded within a Materials Passport to facilitate reuse in any future redevelopment. As substructure replacement is rare, the focus is on maximising durability and reducing maintenance‑driven waste. | G79: The reinforced concrete frame is designed for longevity, with clear spans and a flexible grid that reduces the likelihood of premature demolition. Structural elements are detailed to enable future strengthening or adaptation (e.g. - new apertures, vertical extensions) without heavy demolition, reducing whole‑life waste. | H79: Cladding and glazing systems have planned replacement cycles shorter than the structure. Panels are selected for recyclability, and the façade is designed to be dismantled in layers, allowing selective replacement (e.g. - glazing upgrades, insulation improvements) without disturbing structural elements. | I79: Building services follow shorter design lives. All MEP systems are installed in accessible risers and ceiling zones to allow component‑level replacement without damaging walls or structure. Modular MEP components minimise replacement waste at end‑of‑life. | J79: Internal spaces may be arranged to support low-waste adaptation. | K79: Loose items may be selected to support reuse or recycling. | L79: N/A | M79: The building’s structure has been designed with an indicative design life of over 60 years (based on current British Standards). However, it is anticipated that the building’s lifespan will greatly exceed 60 years. | N79: To be reviewed and updated at the next project stage once a contractor has been appointed. | O79: To be reviewed and updated at the next project stage once a contractor has been appointed. | P79: Whole-Life Carbon Assessment
D80: Module D - Benefits and Loads Beyond the System Boundary | E80: There is no scope to export energy from the site. A Whole-Life Carbon Assessment (WLCA) will identify potential components for reuse and materials for recycling that could be resources for future use. Module D quantifies the net environmental benefits or loads resulting from reuse and recycling resulting from the net flows of materials exiting the system boundary. | F80: Excavation materials and concrete waste can be crushed and reused as secondary aggregates in future projects. Steel reinforcement has high recycling value at end‑of‑life. | G80: Reinforcement steel and formwork materials have clear post‑use recycling pathways and will contribute to positive Module D benefits quantified through WLCA. | H80: Cladding and glazing are prioritised for metals and glass with established recycling streams, maximising reuse and reducing disposal impacts. | I80: Copper, aluminium, steel ductwork and mechanical equipment components are all recyclable and will have recoverable material value. | J80: Internal partitions and finishes will be disassembled and segregated for recycling where possible, with WLCA capturing diversion rates. | K80: Furniture and equipment have reuse potential and may be diverted to reuse schemes before recycling. | L80: N/A | M80: The WLCA makes it possible to quantify the reuse, recovery and recycling potential of a building or product. | N80: To be reviewed and updated at the next project stage once a contractor has been appointed. | O80: To be reviewed and updated at the next project stage once a contractor has been appointed. | P80: Whole-Life Carbon Assessment
B81: Designing for longevity | E81: N/A | F81: • The proposed scheme has been designed to adapt to and mitigate the effects of climate change, specifically in terms of overheating and flood risks. • To mitigate the effects of climate change and resulting overheating risks, the development has followed the cooling hierarchy principles as a means of reducing the amount of solar and internal gains as a first step to maintaining comfortable internal temperatures. • The exposed parts of the building will be protected from material degradation. | G81: The structural grid and loading strategy allow for future changes of use or layout without major structural alterations. Protective coatings and cover depths extend structural life, reducing mid‑life waste. | H81: Façade materials are selected for UV resistance, weather protection and replaceable outer layers. Joints and seals are designed for maintainability, extending façade service life. | I81: A plant replacement strategy will be developed to ensure that building services equipment can be replaced when required (at end of life) without damage to building fabric or structure. Plant will be located either externally (e.g. condenser units) or within the ground floor plant room. The plant room will be accessible. It will be possible to disassemble larger items of plant - for example the water tank, which will be installed in sections. | J81: • The surface materials shall be designed durable and easy to maintain. • Vulnerable parts of the building shall be protected from accidental or malicious damage, thus expanding material lifespan, and reducing replacement. | K81: Not in scope of works | L81: N/A | M81: • The building will be designed to avoid a premature end of life for all components. • Specifying durable material finishes. • Designing for climate change scenarios. | N81: To be reviewed and updated at the next project stage once a contractor has been appointed. | O81: To be reviewed and updated at the next project stage once a contractor has been appointed. | P81: • Implementing Overheating, Flood Risk Assessment Drainage Strategy recommendations. • Plant Replacement Strategy.
B82: Designing for adaptability or flexibility | E82: N/A | F82: N/A | G82: The commercial spaces of the development have been designed to allow flexibility in terms of internal fi-out and arrangement to suite the changing needs of the occupant. | H82: N/A | I82: It will be possible to remove and replace major items of plant without needed to demolish sections of wall or floor. | J82: For the commercial units - recommendations to enable and facilitate disassembly and functional adaptation are to be developed. | K82: Not in scope of works | L82: Circular Economy measures will be reviewed during construction to ensure that recommendations are implemented. | M82: The commercial units will be designed to be adaptable to multiple uses. | N82: To be reviewed and updated at the next project stage once a contractor has been appointed. | O82: To be reviewed and updated at the next project stage once a contractor has been appointed. | P82: Plant Replacement Strategy – developed to ensure that building services equipment can be replaced when required (at end of life) without damage to building fabric or structure.
B83: Designing for disassembly | E83: N/A | F83: • As most building elements have a service life <60 years, the proposed development has been designed to enable the replacement of individual elements based on their design life periods, therefore meaning that some could be replaced at least once over the building’s 60-year lifespan. • An approach of ‘building in layers’ is proposed to ensure that layers with shorter lifespans can be replaced without damage to layers which have longer life spans - for example, building services will be designed and installed with dedicated access for maintenance/replacement, so that there is minimal disruption to the substructure/superstructure of the development. • Modularity allows elements to be slotted together or taken apart to promote disassembly. The feasibility of inclusion of modular elements will be evaluated post planning. • Components and products will be designed and selected to allow for disassembly and reuse at the end of their useful life. Building Information will be stored to facilitate end of life strategy, disassembly, future reuse, waste avoidance, and waste reduction. Exposed and reversible connections will be utilised where possible to facilitate disassembly and ensure materials can be recovered in a high value state. • RC frames should be kept within the operational phase of the building life cycle for as long as possible. The information regarding the construction of the building shall be easily communicable for future building professionals to aid future redevelopments that maximise the repurposing of the building with minimal demolition. • Building Information will be stored to facilitate end of life strategy, disassembly, future reuse, waste avoidance, and waste reduction. | G83: Structural connections allow selective dismantling. Structural elements are recorded for future reuse or recycling. | H83: Façade panels attached with reversible fixings allow piece‑by‑piece dismantling and sorting by material type. | I83: Service routes considered for removal. | J83: Partitions considered for easy removal. | K83: Not in scope of works. | L83: N/A | M83: The development will be designed to allow for disassembly, where feasible. | N83: To be reviewed and updated at the next project stage once a contractor has been appointed. | O83: To be reviewed and updated at the next project stage once a contractor has been appointed. | P83: For commercial buildings: BREEAM Wst 06 Design for Disassembly and Adaptability
B84: Using systems, elements or materials that can be re-used and recycled | E84: N/A | F84: • Standardised materials sizes will be used where possible as these help to facilitate reuse. • The reinforced concrete frame will not be appropriate for reuse. • Building Information will be stored to facilitate end of life strategy, disassembly, future reuse, waste avoidance, and waste reduction. Exposed and reversible connections will be utilised where possible to facilitate disassembly and ensure materials can be recovered in a high value state. Standard types of connections will be used as these can be separated and reused more easily. | G84: Structural materials reviewed for recycling feasibility. | H84: Envelope materials may be selected for recyclability. | I84: Services with take-back/recycling options explored. | J84: Plant and equipment are specified with components capable of remanufacture or reuse where available. | K84: Not in scope of works. | L84: N/A | M84: The development will be designed to allow for disassembly, where feasible. | N84: To be reviewed and updated at the next project stage once a contractor has been appointed. | O84: To be reviewed and updated at the next project stage once a contractor has been appointed. | P84: • For commercial buildings: BREEAM Wst 06 Design for Disassembly and Adaptability. • Whole-Life Carbon Assessment • End of life strategy
B87: Bill of Materials
B88: Please click the + symbol to the left hand side of the Bill of Materials table to view or hide the input rows for each Building Element Category. The rows for substructure and frame have been unhidden to highlight this. A fixed number of rows has been provided for each Building Element Category based on a sub-set of typical WLCA submissions. Should the number of rows provided not be sufficient to allow input of all materials for a given Building Element Category, Applicants should prioritise the inclusion of the materials with the highest quantity.
C89: BUILDING ELEMENT CATEGORY - LEVEL 1 (based on the RICS New Rules of Measurement (NRM) classification system level 2 sub-elements https://www.rics.org/globalassets/rics-website/media/products/data-products/bcis-construction/bcis-elemental-standard-form-cost-analysis-4th-nrm-edition-2012.pdf) | E89: PRODUCT AND CONSTRUCTION STAGE (MODULE A) | M89: USE STAGE (MODULE B) | R89: END OF LIFE STAGE (MODULE C) | W89: BENEFITS BEYOND THE SYSTEM BOUNDARY (MODULE D)
C90: Building Element Category | E90: Material Type | F90: Material quantity (Module A) (kg) | G90: Material intensity (Module A) (kg/m2 GIA) | H90: Performance Indicator (LPG Appendix 1) | I90: Construction Waste Factor (Module A) | J90: Construction Waste (Module A) (kg) | K90: Recycled Content by mass (kg) | L90: Recycled Content by value (%) | M90: Expected Lifespan (years) | N90: Number of Replacements (over assumed 60-year period) | O90: Repair and Replacement quantities of materials (Module B) (kg) | P90: Construction Waste Factor (Module B) | Q90: Construction Waste (Module B) (kg) | R90: Design for Disassembly | S90: Assumed End of Life Scenario (Description) | T90: % Reusing | U90: % Recycling | V90: % Landfill | W90: Estimated reusable materials (kg) | X90: Estimated reusable materials intensity (kg/m2 GIA) | Y90: Estimated recyclable materials (kg) | Z90: Estimated recyclable materials intensity (kg/m2 GIA)
B91: 0.1 | C91: Demolition: Toxic/Hazardous/Contaminated Material Treatment | E91: - | F91: =SUM(F92:F106) -> 0 | G91: =IF(AND(F91<>0,$D$31<>0),F91/$D$31,0) -> 0 | H91: - | I91: - | J91: =SUM(J92:J106) -> 0 | K91: - | L91: - | M91: - | N91: - | O91: =SUM(O92:O106) -> 0 | P91: - | Q91: =SUM(Q92:Q106) -> 0 | R91: - | S91: - | T91: =IF(W91<>0,W91/($F$91+$O$91),0) -> 0 | U91: =IF(Y91<>0,Y91/($F$91+$O$91),0) -> 0 | V91: =1-T91-U91 -> 1 | W91: =SUM(W92:W106) -> 0 | X91: =IF(AND(W91<>0,$D$31<>0),W91/$D$31,0) -> 0 | Y91: =SUM(Y92:Y106) -> 0 | Z91: =IF(AND(Y91<>0,$D$31<>0),Y91/$D$31,0) -> 0
B92: 0.1 | C92: Demolition: Toxic/Hazardous/Contaminated Material Treatment | G92: =IF(AND(F92<>0,$D$31<>0),F92/$D$31,0) -> 0 | H92: - | I92: 0 | J92: =F92*I92 -> 0 | N92: =IF(M92<>0,INT(59/M92),0) -> 0 | O92: =F92*N92 -> 0 | P92: 0 | Q92: =O92*P92 -> 0 | T92: 0 | U92: 0 | V92: =1-T92-U92 -> 1 | W92: =T92*(F92+O92) -> 0 | X92: =IF(AND(W92<>0,$D$31<>0),W92/$D$31,0) -> 0 | Y92: =U92*(F92+O92) -> 0 | Z92: =IF(AND(Y92<>0,$D$31<>0),Y92/$D$31,0) -> 0
G93: =IF(AND(F93<>0,$D$31<>0),F93/$D$31,0) -> 0 | H93: - | I93: 0 | J93: =F93*I93 -> 0 | N93: =IF(M93<>0,INT(59/M93),0) -> 0 | O93: =F93*N93 -> 0 | P93: 0 | Q93: =O93*P93 -> 0 | T93: 0 | U93: 0 | V93: =1-T93-U93 -> 1 | W93: =T93*(F93+O93) -> 0 | X93: =IF(AND(W93<>0,$D$31<>0),W93/$D$31,0) -> 0 | Y93: =U93*(F93+O93) -> 0 | Z93: 0
G94: 0 | H94: - | I94: 0 | J94: 0 | N94: 0 | O94: 0 | P94: 0 | Q94: 0 | T94: 0 | U94: 0 | V94: 1 | W94: 0 | X94: 0 | Y94: 0 | Z94: 0
G95: 0 | H95: - | I95: 0 | J95: 0 | N95: 0 | O95: 0 | P95: 0 | Q95: 0 | T95: 0 | U95: 0 | V95: 1 | W95: 0 | X95: 0 | Y95: 0 | Z95: 0
G96: 0 | H96: - | I96: 0 | J96: 0 | N96: 0 | O96: 0 | P96: 0 | Q96: 0 | T96: 0 | U96: 0 | V96: 1 | W96: 0 | X96: 0 | Y96: 0 | Z96: 0
G97: 0 | H97: - | I97: 0 | J97: 0 | N97: 0 | O97: 0 | P97: 0 | Q97: 0 | T97: 0 | U97: 0 | V97: 1 | W97: 0 | X97: 0 | Y97: 0 | Z97: 0
G98: 0 | H98: - | I98: 0 | J98: 0 | N98: 0 | O98: 0 | P98: 0 | Q98: 0 | T98: 0 | U98: 0 | V98: 1 | W98: 0 | X98: 0 | Y98: 0 | Z98: 0
G99: 0 | H99: - | I99: 0 | J99: 0 | N99: 0 | O99: 0 | P99: 0 | Q99: 0 | T99: 0 | U99: 0 | V99: 1 | W99: 0 | X99: 0 | Y99: 0 | Z99: 0
G100: 0 | H100: - | I100: 0 | J100: 0 | N100: 0 | O100: 0 | P100: 0 | Q100: 0 | T100: 0 | U100: 0 | V100: 1 | W100: 0 | X100: 0 | Y100: 0 | Z100: 0
G101: 0 | H101: - | I101: 0 | J101: 0 | N101: 0 | O101: 0 | P101: 0 | Q101: 0 | T101: 0 | U101: 0 | V101: 1 | W101: 0 | X101: 0 | Y101: 0 | Z101: 0
G102: 0 | H102: - | I102: 0 | J102: 0 | N102: 0 | O102: 0 | P102: 0 | Q102: 0 | T102: 0 | U102: 0 | V102: 1 | W102: 0 | X102: 0 | Y102: 0 | Z102: 0
G103: 0 | H103: - | I103: 0 | J103: 0 | N103: 0 | O103: 0 | P103: 0 | Q103: 0 | T103: 0 | U103: 0 | V103: 1 | W103: 0 | X103: 0 | Y103: 0 | Z103: 0
G104: 0 | H104: - | I104: 0 | J104: 0 | N104: 0 | O104: 0 | P104: 0 | Q104: 0 | T104: 0 | U104: 0 | V104: 1 | W104: 0 | X104: 0 | Y104: 0 | Z104: 0
G105: 0 | H105: - | I105: 0 | J105: 0 | N105: 0 | O105: 0 | P105: 0 | Q105: 0 | T105: 0 | U105: 0 | V105: 1 | W105: 0 | X105: 0 | Y105: 0 | Z105: 0
G106: 0 | H106: - | I106: 0 | J106: 0 | N106: 0 | O106: 0 | P106: 0 | Q106: 0 | T106: 0 | U106: 0 | V106: 1 | W106: 0 | X106: 0 | Y106: 0 | Z106: 0
B107: 0.2 | C107: Major Demolition Works | E107: - | F107: =SUM(F108:F122) -> 0 | G107: =IF(AND(F107<>0,$D$31<>0),F107/$D$31,0) -> 0 | H107: - | I107: - | J107: =SUM(J108:J122) -> 0 | K107: - | L107: - | M107: - | N107: - | O107: =SUM(O108:O122) -> 0 | P107: - | Q107: =SUM(Q108:Q122) -> 0 | R107: - | S107: - | T107: =IF(W107<>0,W107/($F$107+$O$107),0) -> 0 | U107: =IF(Y107<>0,Y107/($F$107+$O$107),0) -> 0 | V107: =1-T107-U107 -> 1 | W107: =SUM(W108:W122) -> 0 | X107: 0 | Y107: =SUM(Y108:Y122) -> 0 | Z107: 0
B108: 0.2 | C108: Major Demolition Works | G108: =IF(AND(F108<>0,$D$31<>0),F108/$D$31,0) -> 0 | H108: - | I108: 0 | J108: =I108*F108 -> 0 | N108: =IF(M108<>0,INT(59/M108),0) -> 0 | O108: =F108*N108 -> 0 | P108: 0 | Q108: =O108*P108 -> 0 | T108: 0 | U108: 0 | V108: 1 | W108: 0 | X108: 0 | Y108: 0 | Z108: 0
G109: =IF(AND(F109<>0,$D$31<>0),F109/$D$31,0) -> 0 | H109: - | I109: 0 | J109: 0 | N109: =IF(M109<>0,INT(59/M109),0) -> 0 | O109: =F109*N109 -> 0 | P109: 0 | Q109: =O109*P109 -> 0 | T109: 0 | U109: 0 | V109: 1 | W109: 0 | X109: 0 | Y109: 0 | Z109: 0
G110: =IF(AND(F110<>0,$D$31<>0),F110/$D$31,0) -> 0 | H110: - | I110: 0 | J110: 0 | N110: 0 | O110: 0 | P110: 0 | Q110: 0 | T110: 0 | U110: 0 | V110: 1 | W110: 0 | X110: 0 | Y110: 0 | Z110: 0
G111: 0 | H111: - | I111: 0 | J111: 0 | N111: 0 | O111: 0 | P111: 0 | Q111: 0 | T111: 0 | U111: 0 | V111: 1 | W111: 0 | X111: 0 | Y111: 0 | Z111: 0
G112: 0 | H112: - | I112: 0 | J112: 0 | N112: 0 | O112: 0 | P112: 0 | Q112: 0 | T112: 0 | U112: 0 | V112: 1 | W112: 0 | X112: 0 | Y112: 0 | Z112: 0
G113: 0 | H113: - | I113: 0 | J113: 0 | N113: 0 | O113: 0 | P113: 0 | Q113: 0 | T113: 0 | U113: 0 | V113: 1 | W113: 0 | X113: 0 | Y113: 0 | Z113: 0
G114: 0 | H114: - | I114: 0 | J114: 0 | N114: 0 | O114: 0 | P114: 0 | Q114: 0 | T114: 0 | U114: 0 | V114: 1 | W114: 0 | X114: 0 | Y114: 0 | Z114: 0
G115: 0 | H115: - | I115: 0 | J115: 0 | N115: 0 | O115: 0 | P115: 0 | Q115: 0 | T115: 0 | U115: 0 | V115: 1 | W115: 0 | X115: 0 | Y115: 0 | Z115: 0
G116: 0 | H116: - | I116: 0 | J116: 0 | N116: 0 | O116: 0 | P116: 0 | Q116: 0 | T116: 0 | U116: 0 | V116: 1 | W116: 0 | X116: 0 | Y116: 0 | Z116: 0
G117: 0 | H117: - | I117: 0 | J117: 0 | N117: 0 | O117: 0 | P117: 0 | Q117: 0 | T117: 0 | U117: 0 | V117: 1 | W117: 0 | X117: 0 | Y117: 0 | Z117: 0
G118: 0 | H118: - | I118: 0 | J118: 0 | N118: 0 | O118: 0 | P118: 0 | Q118: 0 | T118: 0 | U118: 0 | V118: 1 | W118: 0 | X118: 0 | Y118: 0 | Z118: 0
G119: 0 | H119: - | I119: 0 | J119: 0 | N119: 0 | O119: 0 | P119: 0 | Q119: 0 | T119: 0 | U119: 0 | V119: 1 | W119: 0 | X119: 0 | Y119: 0 | Z119: 0
G120: 0 | H120: - | I120: 0 | J120: 0 | N120: 0 | O120: 0 | P120: 0 | Q120: 0 | T120: 0 | U120: 0 | V120: 1 | W120: 0 | X120: 0 | Y120: 0 | Z120: 0
G121: 0 | H121: - | I121: 0 | J121: 0 | N121: 0 | O121: 0 | P121: 0 | Q121: 0 | T121: 0 | U121: 0 | V121: 1 | W121: 0 | X121: 0 | Y121: 0 | Z121: 0
G122: 0 | H122: - | I122: 0 | J122: 0 | N122: 0 | O122: 0 | P122: 0 | Q122: 0 | T122: 0 | U122: 0 | V122: 1 | W122: 0 | X122: 0 | Y122: 0 | Z122: 0
B123: 0.3 | C123: Temporary Support to Adjacent Structures | E123: - | F123: =SUM(F124:F138) -> 0 | G123: =IF(AND(F123<>0,$D$31<>0),F123/$D$31,0) -> 0 | H123: - | I123: - | J123: =SUM(J124:J138) -> 0 | K123: - | L123: - | M123: - | N123: - | O123: =SUM(O124:O138) -> 0 | P123: - | Q123: =SUM(Q124:Q138) -> 0 | R123: - | S123: - | T123: =IF(W123<>0,W123/($F$123+$O$123),0) -> 0 | U123: =IF(Y123<>0,Y123/($F$123+$O$123),0) -> 0 | V123: 1 | W123: =SUM(W124:W138) -> 0 | X123: 0 | Y123: =SUM(Y124:Y138) -> 0 | Z123: 0
B124: 0.3 | C124: Temporary Support to Adjacent Structures | G124: =IF(AND(F124<>0,$D$31<>0),F124/$D$31,0) -> 0 | H124: - | I124: 0 | J124: =I124*F124 -> 0 | N124: =IF(M124<>0,INT(59/M124),0) -> 0 | O124: =F124*N124 -> 0 | P124: 0 | Q124: =O124*P124 -> 0 | T124: 0 | U124: 0 | V124: 1 | W124: 0 | X124: 0 | Y124: 0 | Z124: 0
G125: =IF(AND(F125<>0,$D$31<>0),F125/$D$31,0) -> 0 | H125: - | I125: 0 | J125: 0 | N125: =IF(M125<>0,INT(59/M125),0) -> 0 | O125: =F125*N125 -> 0 | P125: 0 | Q125: =O125*P125 -> 0 | T125: 0 | U125: 0 | V125: 1 | W125: 0 | X125: 0 | Y125: 0 | Z125: 0
G126: =IF(AND(F126<>0,$D$31<>0),F126/$D$31,0) -> 0 | H126: - | I126: 0 | J126: 0 | N126: 0 | O126: 0 | P126: 0 | Q126: 0 | T126: 0 | U126: 0 | V126: 1 | W126: 0 | X126: 0 | Y126: 0 | Z126: 0
G127: 0 | H127: - | I127: 0 | J127: 0 | N127: 0 | O127: 0 | P127: 0 | Q127: 0 | T127: 0 | U127: 0 | V127: 1 | W127: 0 | X127: 0 | Y127: 0 | Z127: 0
G128: 0 | H128: - | I128: 0 | J128: 0 | N128: 0 | O128: 0 | P128: 0 | Q128: 0 | T128: 0 | U128: 0 | V128: 1 | W128: 0 | X128: 0 | Y128: 0 | Z128: 0
G129: 0 | H129: - | I129: 0 | J129: 0 | N129: 0 | O129: 0 | P129: 0 | Q129: 0 | T129: 0 | U129: 0 | V129: 1 | W129: 0 | X129: 0 | Y129: 0 | Z129: 0
G130: 0 | H130: - | I130: 0 | J130: 0 | N130: 0 | O130: 0 | P130: 0 | Q130: 0 | T130: 0 | U130: 0 | V130: 1 | W130: 0 | X130: 0 | Y130: 0 | Z130: 0
G131: 0 | H131: - | I131: 0 | J131: 0 | N131: 0 | O131: 0 | P131: 0 | Q131: 0 | T131: 0 | U131: 0 | V131: 1 | W131: 0 | X131: 0 | Y131: 0 | Z131: 0
G132: 0 | H132: - | I132: 0 | J132: 0 | N132: 0 | O132: 0 | P132: 0 | Q132: 0 | T132: 0 | U132: 0 | V132: 1 | W132: 0 | X132: 0 | Y132: 0 | Z132: 0
G133: 0 | H133: - | I133: 0 | J133: 0 | N133: 0 | O133: 0 | P133: 0 | Q133: 0 | T133: 0 | U133: 0 | V133: 1 | W133: 0 | X133: 0 | Y133: 0 | Z133: 0
G134: 0 | H134: - | I134: 0 | J134: 0 | N134: 0 | O134: 0 | P134: 0 | Q134: 0 | T134: 0 | U134: 0 | V134: 1 | W134: 0 | X134: 0 | Y134: 0 | Z134: 0
G135: 0 | H135: - | I135: 0 | J135: 0 | N135: 0 | O135: 0 | P135: 0 | Q135: 0 | T135: 0 | U135: 0 | V135: 1 | W135: 0 | X135: 0 | Y135: 0 | Z135: 0
G136: 0 | H136: - | I136: 0 | J136: 0 | N136: 0 | O136: 0 | P136: 0 | Q136: 0 | T136: 0 | U136: 0 | V136: 1 | W136: 0 | X136: 0 | Y136: 0 | Z136: 0
G137: 0 | H137: - | I137: 0 | J137: 0 | N137: 0 | O137: 0 | P137: 0 | Q137: 0 | T137: 0 | U137: 0 | V137: 1 | W137: 0 | X137: 0 | Y137: 0 | Z137: 0
G138: 0 | H138: - | I138: 0 | J138: 0 | N138: 0 | O138: 0 | P138: 0 | Q138: 0 | T138: 0 | U138: 0 | V138: 1 | W138: 0 | X138: 0 | Y138: 0 | Z138: 0
B139: 0.4 | C139: Specialist Ground Works | E139: - | F139: =SUM(F140:F154) -> 0 | G139: =IF(AND(F139<>0,$D$31<>0),F139/$D$31,0) -> 0 | H139: - | I139: - | J139: =SUM(J140:J154) -> 0 | K139: - | L139: - | M139: - | N139: - | O139: =SUM(O140:O154) -> 0 | P139: - | Q139: =SUM(Q140:Q154) -> 0 | R139: - | S139: - | T139: =IF(W139<>0,W139/($F$139+$O$139),0) -> 0 | U139: =IF(Y139<>0,Y139/($F$139+$O$139),0) -> 0 | V139: 1 | W139: =SUM(W140:W154) -> 0 | X139: 0 | Y139: =SUM(Y140:Y154) -> 0 | Z139: 0
B140: 0.4 | C140: Specialist Ground Works | G140: =IF(AND(F140<>0,$D$31<>0),F140/$D$31,0) -> 0 | H140: - | I140: 0 | J140: =I140*F140 -> 0 | N140: =IF(M140<>0,INT(59/M140),0) -> 0 | O140: =F140*N140 -> 0 | P140: 0 | Q140: =O140*P140 -> 0 | T140: 0 | U140: 0 | V140: 1 | W140: 0 | X140: 0 | Y140: 0 | Z140: 0
G141: =IF(AND(F141<>0,$D$31<>0),F141/$D$31,0) -> 0 | H141: - | I141: 0 | J141: 0 | N141: =IF(M141<>0,INT(59/M141),0) -> 0 | O141: =F141*N141 -> 0 | P141: 0 | Q141: =O141*P141 -> 0 | T141: 0 | U141: 0 | V141: 1 | W141: 0 | X141: 0 | Y141: 0 | Z141: 0
G142: =IF(AND(F142<>0,$D$31<>0),F142/$D$31,0) -> 0 | H142: - | I142: 0 | J142: 0 | N142: 0 | O142: 0 | P142: 0 | Q142: 0 | T142: 0 | U142: 0 | V142: 1 | W142: 0 | X142: 0 | Y142: 0 | Z142: 0
G143: 0 | H143: - | I143: 0 | J143: 0 | N143: 0 | O143: 0 | P143: 0 | Q143: 0 | T143: 0 | U143: 0 | V143: 1 | W143: 0 | X143: 0 | Y143: 0 | Z143: 0
G144: 0 | H144: - | I144: 0 | J144: 0 | N144: 0 | O144: 0 | P144: 0 | Q144: 0 | T144: 0 | U144: 0 | V144: 1 | W144: 0 | X144: 0 | Y144: 0 | Z144: 0
G145: 0 | H145: - | I145: 0 | J145: 0 | N145: 0 | O145: 0 | P145: 0 | Q145: 0 | T145: 0 | U145: 0 | V145: 1 | W145: 0 | X145: 0 | Y145: 0 | Z145: 0
G146: 0 | H146: - | I146: 0 | J146: 0 | N146: 0 | O146: 0 | P146: 0 | Q146: 0 | T146: 0 | U146: 0 | V146: 1 | W146: 0 | X146: 0 | Y146: 0 | Z146: 0
G147: 0 | H147: - | I147: 0 | J147: 0 | N147: 0 | O147: 0 | P147: 0 | Q147: 0 | T147: 0 | U147: 0 | V147: 1 | W147: 0 | X147: 0 | Y147: 0 | Z147: 0
G148: 0 | H148: - | I148: 0 | J148: 0 | N148: 0 | O148: 0 | P148: 0 | Q148: 0 | T148: 0 | U148: 0 | V148: 1 | W148: 0 | X148: 0 | Y148: 0 | Z148: 0
G149: 0 | H149: - | I149: 0 | J149: 0 | N149: 0 | O149: 0 | P149: 0 | Q149: 0 | T149: 0 | U149: 0 | V149: 1 | W149: 0 | X149: 0 | Y149: 0 | Z149: 0
G150: 0 | H150: - | I150: 0 | J150: 0 | N150: 0 | O150: 0 | P150: 0 | Q150: 0 | T150: 0 | U150: 0 | V150: 1 | W150: 0 | X150: 0 | Y150: 0 | Z150: 0
G151: 0 | H151: - | I151: 0 | J151: 0 | N151: 0 | O151: 0 | P151: 0 | Q151: 0 | T151: 0 | U151: 0 | V151: 1 | W151: 0 | X151: 0 | Y151: 0 | Z151: 0
G152: 0 | H152: - | I152: 0 | J152: 0 | N152: 0 | O152: 0 | P152: 0 | Q152: 0 | T152: 0 | U152: 0 | V152: 1 | W152: 0 | X152: 0 | Y152: 0 | Z152: 0
G153: 0 | H153: - | I153: 0 | J153: 0 | N153: 0 | O153: 0 | P153: 0 | Q153: 0 | T153: 0 | U153: 0 | V153: 1 | W153: 0 | X153: 0 | Y153: 0 | Z153: 0
G154: 0 | H154: - | I154: 0 | J154: 0 | N154: 0 | O154: 0 | P154: 0 | Q154: 0 | T154: 0 | U154: 0 | V154: 1 | W154: 0 | X154: 0 | Y154: 0 | Z154: 0
B155: 1 | C155: Substructure | E155: - | F155: =SUM(F156:F175) -> 27727938.78 | G155: =IF(AND(F155<>0,$D$31<>0),F155/$D$31,0) -> 178.897776 | H155: =SUMPRODUCT((C91:D454="Substructure")*G91:G454) -> 181.4604485 | I155: - | J155: =SUM(J156:J175) -> 1328490.325 | K155: - | L155: - | M155: - | N155: - | O155: =SUM(O156:O175) -> 0 | P155: - | Q155: =SUM(Q156:Q175) -> 0 | R155: - | S155: - | T155: =IF(W155<>0,W155/($F$155+$O$155),0) -> 0 | U155: =IF(Y155<>0,Y155/($F$155+$O$155),0) -> 0.9794657322 | V155: 0.02053426777 | W155: =SUM(W156:W175) -> 0 | X155: 0 | Y155: =SUM(Y156:Y175) -> 27158565.86 | Z155: 175.2242412
B156: 1 | C156: Substructure | E156: Ready-mix concrete, low-strength, generic, C12/15 (1700/2200 PSI), 0% recycled binders in cement (220 kg/m3 / 13.73 lbs/ft3) (One Click LCA) | F156: 397196.8 | G156: =IF(AND(F156<>0,$D$31<>0),F156/$D$31,0) -> 2.562672427 | H156: - | I156: 0.04 | J156: =I156*F156 -> 15887.872 | K156: 0 | M156: 60 | N156: =IF(M156<>0,INT(59/M156),0) -> 0 | O156: =F156*N156 -> 0 | P156: 0.04 | Q156: =O156*P156 -> 0 | S156: Concrete crushed to aggregate (for sub-base layers), Portland Cement 200 kg / m3 | T156: 0 | U156: 0.98 | V156: 0.02 | W156: 0 | X156: 0 | Y156: 389252.864 | Z156: 2.511418978
E157: Ready-mix concrete, low-strength, generic, C12/15 (1700/2200 PSI), 0% recycled binders in cement (220 kg/m3 / 13.73 lbs/ft3) (One Click LCA) | F157: 944905.5 | G157: =IF(AND(F157<>0,$D$31<>0),F157/$D$31,0) -> 6.096431972 | H157: - | I157: 0.05 | J157: 47245.275 | K157: 0 | M157: 60 | N157: =IF(M157<>0,INT(59/M157),0) -> 0 | O157: =F157*N157 -> 0 | P157: 0.05 | Q157: =O157*P157 -> 0 | S157: Concrete crushed to aggregate (for sub-base layers), Portland Cement 200 kg / m3 | T157: 0 | U157: 0.98 | V157: =1-T157-U157 -> 0.02 | W157: =T157*(F157+O157) -> 0 | X157: =IF(AND(W157<>0,$D$31<>0),W157/$D$31,0) -> 0 | Y157: =U157*(F157+O157) -> 926007.39 | Z157: 5.974503333
E158: Ready-mix concrete, low-strength, generic, C12/15 (1700/2200 PSI), 30% recycled binders in cement (220 kg/m3 / 13.73 lbs/ft3) (One Click LCA) | F158: 226726.5 | G158: =IF(AND(F158<>0,$D$31<>0),F158/$D$31,0) -> 1.462815788 | H158: - | I158: 0.05 | J158: 11336.325 | K158: 68017.95 | M158: 60 | N158: 0 | O158: 0 | P158: 0.05 | Q158: 0 | S158: Concrete crushed to aggregate (for sub-base layers), Portland Cement 200 kg / m3 | T158: 0 | U158: 0.98 | V158: 0.02 | W158: 0 | X158: 0 | Y158: 222191.97 | Z158: 1.433559472
E159: Ready-mix concrete, normal-strength, generic, C30/37 (4400/5400 PSI), 0% recycled binders in cement (300 kg/m3 / 18.72 lbs/ft3) (One Click LCA) | F159: 7062174 | G159: 45.56441186 | H159: - | I159: 0.05 | J159: 353108.7 | K159: 0 | M159: 60 | N159: 0 | O159: 0 | P159: 0.05 | Q159: 0 | S159: Concrete crushed to aggregate (for sub-base layers), Portland Cement 300 kg / m3 | T159: 0 | U159: 0.98 | V159: 0.02 | W159: 0 | X159: 0 | Y159: 6920930.52 | Z159: 44.65312362
E160: Ready-mix concrete, normal-strength, generic, C30/37 (4400/5400 PSI), 10% (typical) recycled binders in cement (300 kg/m3 / 18.72 lbs/ft3) (One Click LCA) | F160: 4914700.84 | G160: 31.70913847 | H160: - | I160: 0.05 | J160: 245735.042 | K160: 491470.084 | M160: 60 | N160: 0 | O160: 0 | P160: 0.05 | Q160: 0 | S160: Concrete crushed to aggregate (for sub-base layers), Portland Cement 300 kg / m3 | T160: 0 | U160: 0.98 | V160: 0.02 | W160: 0 | X160: 0 | Y160: 4816406.823 | Z160: 31.0749557
E161: Ready-mix concrete, normal-strength, generic, C30/37 (4400/5400 PSI), 30% recycled binders in cement (300 kg/m3 / 18.72 lbs/ft3) (One Click LCA) | F161: 2133555.9 | G161: 13.76548068 | H161: - | I161: 0.05 | J161: 106677.795 | K161: 640066.77 | M161: 60 | N161: 0 | O161: 0 | P161: 0.05 | Q161: 0 | S161: Concrete crushed to aggregate (for sub-base layers), Portland Cement 300 kg / m3 | T161: 0 | U161: 0.98 | V161: 0.02 | W161: 0 | X161: 0 | Y161: 2090884.782 | Z161: 13.49017107
E162: Reinforcement steel (rebar), generic, 15% recycled content, A615 (One Click LCA) | F162: 959617.89 | G162: 6.191354782 | H162: - | I162: 0.05 | J162: 47980.8945 | K162: 143942.6835 | M162: 60 | N162: 0 | O162: 0 | P162: 0.05 | Q162: 0 | S162: Steel recycling | T162: 0 | U162: 0.98 | V162: 0.02 | W162: 0 | X162: 0 | Y162: 940425.5322 | Z162: 6.067527686
E163: EPS Insulation, L= 0.031 W/mK, R= 1 m2K/W, 600x1200x31 mm, 16 kg/m3, pressure class 80 kN/m² (EPS-gruppen) | F163: 57129.78 | G163: 0.3685953964 | H163: - | I163: 0.04 | J163: 2285.1912 | K163: 0 | M163: 60 | N163: 0 | O163: 0 | P163: 0.04 | Q163: 0 | S163: Plastic-based material incineration | T163: 0 | U163: 0.95 | V163: 0.05 | W163: 0 | X163: 0 | Y163: 54273.291 | Z163: 0.3501656266
E164: EPS Insulation, L= 0.031 W/mK, R= 1 m2K/W, 600x1200x31 mm, 16 kg/m3, pressure class 80 kN/m² (EPS-gruppen) | F164: 3093.93 | G164: 0.01996171445 | H164: - | I164: 0.07 | J164: 216.5751 | K164: 0 | M164: 60 | N164: 0 | O164: 0 | P164: 0.07 | Q164: 0 | S164: Plastic-based material incineration | T164: 0 | U164: 0.95 | V164: 0.05 | W164: 0 | X164: 0 | Y164: 2939.2335 | Z164: 0.01896362873
E165: Plastic vapour control layer, 0.2 mm (Tommen Gram) | F165: 2770.85 | G165: 0.0178772359 | H165: - | I165: 0.1 | J165: 277.085 | K165: 0 | M165: 60 | N165: 0 | O165: 0 | P165: 0.1 | Q165: 0 | S165: Plastic-based material incineration | T165: 0 | U165: 0.95 | V165: 0.05 | W165: 0 | X165: 0 | Y165: 2632.3075 | Z165: 0.01698337411
E166: Ready-mix concrete, normal-strength, generic, C30/37 (4400/5400 PSI), 10% (typical) recycled binders in cement (300 kg/m3 / 18.72 lbs/ft3) (One Click LCA) | F166: 8725766.4 | G166: 56.29773693 | H166: - | I166: 0.04 | J166: 349030.656 | K166: 872576.64 | M166: 60 | N166: 0 | O166: 0 | P166: 0.04 | Q166: 0 | S166: Concrete crushed to aggregate (for sub-base layers), Portland Cement 300 kg / m3 | T166: 0 | U166: 0.98 | V166: 0.02 | W166: 0 | X166: 0 | Y166: 8551251.072 | Z166: 55.17178219
E167: Ready-mix concrete, normal-strength, generic, C30/37 (4400/5400 PSI), 30% recycled binders in cement (300 kg/m3 / 18.72 lbs/ft3) (One Click LCA) | F167: 1484028 | G167: 9.574794249 | H167: - | I167: 0.05 | J167: 74201.4 | K167: 445208.4 | M167: 60 | N167: 0 | O167: 0 | P167: 0.05 | Q167: 0 | S167: Concrete crushed to aggregate (for sub-base layers), Portland Cement 300 kg / m3 | T167: 0 | U167: 0.98 | V167: 0.02 | W167: 0 | X167: 0 | Y167: 1454347.44 | Z167: 9.383298364
E168: Reinforcement steel (rebar), generic, 15% recycled content, A615 (One Click LCA) | F168: 385462.15 | G168: 2.486961686 | H168: - | I168: 0.048 | J168: 18502.1832 | K168: 57819.3225 | M168: 60 | N168: 0 | O168: 0 | P168: 0.048 | Q168: 0 | S168: Steel recycling | T168: 0 | U168: 0.98 | V168: 0.02 | W168: 0 | X168: 0 | Y168: 377752.907 | Z168: 2.437222452
E169: Self levelling mortar, for floors, walls and overhead appl., 3-50 mm, 1400 kg/m3, Pericret (PCI Augsburg) | F169: 430810.24 | G169: 2.779542844 | H169: - | I169: 0.13 | J169: 56005.3312 | K169: 0 | M169: 60 | N169: 0 | O169: 0 | P169: 0.13 | Q169: 0 | S169: Cement/mortar use in a backfill | T169: 0 | U169: 0.95 | V169: 0.05 | W169: 0 | X169: 0 | Y169: 409269.728 | Z169: 2.640565702
G170: =IF(AND(F170<>0,$D$31<>0),F170/$D$31,0) -> 0 | H170: - | I170: 0 | J170: 0 | N170: 0 | O170: 0 | P170: 0 | Q170: 0 | T170: 0 | U170: 0 | V170: 1 | W170: 0 | X170: 0 | Y170: 0 | Z170: 0
G171: =IF(AND(F171<>0,$D$31<>0),F171/$D$31,0) -> 0 | H171: - | I171: 0 | J171: 0 | N171: 0 | O171: 0 | P171: 0 | Q171: 0 | T171: 0 | U171: 0 | V171: 1 | W171: 0 | X171: 0 | Y171: 0 | Z171: 0
G172: =IF(AND(F172<>0,$D$31<>0),F172/$D$31,0) -> 0 | H172: - | I172: 0 | J172: 0 | N172: 0 | O172: 0 | P172: 0 | Q172: 0 | T172: 0 | U172: 0 | V172: 1 | W172: 0 | X172: 0 | Y172: 0 | Z172: 0
G173: 0 | H173: - | I173: 0 | J173: 0 | N173: 0 | O173: 0 | P173: 0 | Q173: 0 | T173: 0 | U173: 0 | V173: 1 | W173: 0 | X173: 0 | Y173: 0 | Z173: 0
G174: 0 | H174: - | I174: 0 | J174: 0 | N174: 0 | O174: 0 | P174: 0 | Q174: 0 | T174: 0 | U174: 0 | V174: 1 | W174: 0 | X174: 0 | Y174: 0 | Z174: 0
G175: =IF(AND(F175<>0,$D$31<>0),F175/$D$31,0) -> 0 | H175: - | I175: 0 | J175: 0 | N175: =IF(M175<>0,INT(59/M175),0) -> 0 | O175: 0 | P175: 0 | Q175: 0 | T175: 0 | U175: 0 | V175: 1 | W175: 0 | X175: 0 | Y175: 0 | Z175: 0
B176: 2.1 | C176: Superstructure: Frame | E176: - | F176: =SUM(F177:F196) -> 8365052.23 | G176: =IF(AND(F176<>0,$D$31<>0),F176/$D$31,0) -> 53.97044664 | H176: =SUMPRODUCT((C91:D454="Superstructure: Frame")*G91:G454) -> 54.00702889 | I176: - | J176: =SUM(J177:J196) -> 129258.9072 | K176: - | L176: - | M176: - | N176: - | O176: =SUM(O177:O196) -> 0 | P176: - | Q176: =SUM(Q177:Q196) -> 0 | R176: - | S176: - | T176: =IF(W176<>0,W176/($F$176+$O$176),0) -> 0 | U176: =IF(Y176<>0,Y176/($F$176+$O$176),0) -> 0.98 | V176: 0.02 | W176: =SUM(W177:W196) -> 0 | X176: 0 | Y176: =SUM(Y177:Y196) -> 8197751.185 | Z176: 52.89103771
B177: 2.1 | C177: Superstructure: Frame | E177: Ready-mix concrete, normal strength, generic, C32/40 (4600/5800 PSI) with CEM II/A-V, 10% fly ash content in cement (300 kg/m3; 18.7 lbs/ft3 total cement) (One Click LCA) | F177: 5670 | G177: =IF(AND(F177<>0,$D$31<>0),F177/$D$31,0) -> 0.03658225006 | H177: - | I177: 0.05 | J177: =I177*F177 -> 283.5 | K177: 567 | M177: 60 | N177: =IF(M177<>0,INT(59/M177),0) -> 0 | O177: =F177*N177 -> 0 | P177: 0.05 | Q177: =O177*P177 -> 0 | S177: Concrete crushed to aggregate (for sub-base layers), Portland Cement 300 kg / m3 | T177: 0 | U177: 0.98 | V177: 0.02 | W177: 0 | X177: 0 | Y177: 5556.6 | Z177: 0.03585060506
E178: Reinforcement steel (rebar), generic, 15% recycled content, A615 (One Click LCA) | F178: 767.81 | G178: =IF(AND(F178<>0,$D$31<>0),F178/$D$31,0) -> 0.004953830233 | H178: - | I178: 0.05 | J178: 38.3905 | K178: 115.1715 | M178: 60 | N178: =IF(M178<>0,INT(59/M178),0) -> 0 | O178: =F178*N178 -> 0 | P178: 0.05 | Q178: =O178*P178 -> 0 | S178: Steel recycling | T178: 0 | U178: 0.98 | V178: 0.02 | W178: 0 | X178: 0 | Y178: 752.4538 | Z178: 0.004854753628
E179: Ready-mix concrete, normal strength, generic, C32/40 (4600/5800 PSI) with CEM II/A-V, 10% fly ash content in cement (300 kg/m3; 18.7 lbs/ft3 total cement) (One Click LCA) | F179: 26906.88 | G179: =IF(AND(F179<>0,$D$31<>0),F179/$D$31,0) -> 0.1736003902 | H179: - | I179: 0.04 | J179: 1076.2752 | K179: 2690.688 | M179: 60 | N179: 0 | O179: 0 | P179: 0.04 | Q179: 0 | S179: Concrete crushed to aggregate (for sub-base layers), Portland Cement 300 kg / m3 | T179: 0 | U179: 0.98 | V179: 0.02 | W179: 0 | X179: 0 | Y179: 26368.7424 | Z179: 0.1701283824
E180: Ready-mix concrete, normal strength, generic, C32/40 (4600/5800 PSI) with CEM II/A-V, 10% fly ash content in cement (300 kg/m3; 18.7 lbs/ft3 total cement) (One Click LCA) | F180: 3628.8 | G180: 0.02341264004 | H180: - | I180: 0.05 | J180: 181.44 | K180: 362.88 | M180: 60 | N180: 0 | O180: 0 | P180: 0.05 | Q180: 0 | S180: Concrete crushed to aggregate (for sub-base layers), Portland Cement 300 kg / m3 | T180: 0 | U180: 0.98 | V180: 0.02 | W180: 0 | X180: 0 | Y180: 3556.224 | Z180: 0.02294438724
E181: Reinforcement steel (rebar), generic, 15% recycled content, A615 (One Click LCA) | F181: 3493.98 | G181: 0.02254279543 | H181: - | I181: 0.05 | J181: 174.699 | K181: 524.097 | M181: 60 | N181: 0 | O181: 0 | P181: 0.05 | Q181: 0 | S181: Steel recycling | T181: 0 | U181: 0.98 | V181: 0.02 | W181: 0 | X181: 0 | Y181: 3424.1004 | Z181: 0.02209193952
E182: Structural steel profiles, generic, 15% recycled content (only virgin materials), I, H, U, L, and T sections, S235, S275 and S355 (One Click LCA) | F182: 6400291.07 | G182: 41.29401206 | H182: - | I182: 0.01 | J182: 64002.9107 | K182: 960043.6605 | M182: 60 | N182: 0 | O182: 0 | P182: 0.01 | Q182: 0 | S182: Steel recycling | T182: 0 | U182: 0.98 | V182: 0.02 | W182: 0 | X182: 0 | Y182: 6272285.249 | Z182: 40.46813182
E183: Structural steel profiles, generic, 15% recycled content (only virgin materials), I, H, U, L, and T sections, S235, S275 and S355 (One Click LCA) | F183: 1924293.69 | G183: 12.41534267 | H183: - | I183: 0.033 | J183: 63501.69177 | K183: 288644.0535 | M183: 60 | N183: 0 | O183: 0 | P183: 0.033 | Q183: 0 | S183: Steel recycling | T183: 0 | U183: 0.98 | V183: 0.02 | W183: 0 | X183: 0 | Y183: 1885807.816 | Z183: 12.16703582
G184: 0 | H184: - | I184: 0 | J184: 0 | N184: 0 | O184: 0 | P184: 0 | Q184: 0 | T184: 0 | U184: 0 | V184: 1 | W184: 0 | X184: 0 | Y184: 0 | Z184: 0
G185: 0 | H185: - | I185: 0 | J185: 0 | N185: 0 | O185: 0 | P185: 0 | Q185: 0 | T185: 0 | U185: 0 | V185: 1 | W185: 0 | X185: 0 | Y185: 0 | Z185: 0
G186: 0 | H186: - | I186: 0 | J186: 0 | N186: 0 | O186: 0 | P186: 0 | Q186: 0 | T186: 0 | U186: 0 | V186: 1 | W186: 0 | X186: 0 | Y186: 0 | Z186: 0
G187: 0 | H187: - | I187: 0 | J187: 0 | N187: 0 | O187: 0 | P187: 0 | Q187: 0 | T187: 0 | U187: 0 | V187: 1 | W187: 0 | X187: 0 | Y187: 0 | Z187: 0
G188: 0 | H188: - | I188: 0 | J188: 0 | N188: 0 | O188: 0 | P188: 0 | Q188: 0 | T188: 0 | U188: 0 | V188: 1 | W188: 0 | X188: 0 | Y188: 0 | Z188: 0
G189: 0 | H189: - | I189: 0 | J189: 0 | N189: 0 | O189: 0 | P189: 0 | Q189: 0 | T189: 0 | U189: 0 | V189: 1 | W189: 0 | X189: 0 | Y189: 0 | Z189: 0
G190: 0 | H190: - | I190: 0 | J190: 0 | N190: 0 | O190: 0 | P190: 0 | Q190: 0 | T190: 0 | U190: 0 | V190: 1 | W190: 0 | X190: 0 | Y190: 0 | Z190: 0
G191: =IF(AND(F191<>0,$D$31<>0),F191/$D$31,0) -> 0 | H191: - | I191: 0 | J191: 0 | N191: 0 | O191: 0 | P191: 0 | Q191: 0 | T191: 0 | U191: 0 | V191: 1 | W191: 0 | X191: 0 | Y191: 0 | Z191: 0
G192: =IF(AND(F192<>0,$D$31<>0),F192/$D$31,0) -> 0 | H192: - | I192: 0 | J192: 0 | N192: 0 | O192: 0 | P192: 0 | Q192: 0 | T192: 0 | U192: 0 | V192: 1 | W192: 0 | X192: 0 | Y192: 0 | Z192: 0
G193: =IF(AND(F193<>0,$D$31<>0),F193/$D$31,0) -> 0 | H193: - | I193: 0 | J193: 0 | N193: 0 | O193: 0 | P193: 0 | Q193: 0 | T193: 0 | U193: 0 | V193: 1 | W193: 0 | X193: 0 | Y193: 0 | Z193: 0
G194: =IF(AND(F194<>0,$D$31<>0),F194/$D$31,0) -> 0 | H194: - | I194: 0 | J194: 0 | N194: 0 | O194: 0 | P194: 0 | Q194: 0 | T194: 0 | U194: 0 | V194: 1 | W194: 0 | X194: 0 | Y194: 0 | Z194: 0
G195: 0 | H195: - | I195: 0 | J195: 0 | N195: 0 | O195: 0 | P195: 0 | Q195: 0 | T195: 0 | U195: 0 | V195: 1 | W195: 0 | X195: 0 | Y195: 0 | Z195: 0
G196: 0 | H196: - | I196: 0 | J196: 0 | N196: 0 | O196: 0 | P196: 0 | Q196: 0 | T196: 0 | U196: 0 | V196: 1 | W196: 0 | X196: 0 | Y196: 0 | Z196: 0
B197: 2.2 | C197: Superstructure: Upper Floors | E197: - | F197: =SUM(F198:F217) -> 36215781.41 | G197: =IF(AND(F197<>0,$D$31<>0),F197/$D$31,0) -> 233.6604536 | H197: =SUMPRODUCT((C176:D459="Superstructure: Upper Floors")*G176:G459) -> 233.8152977 | I197: - | J197: =SUM(J198:J217) -> 1520400.64 | K197: - | L197: - | M197: - | N197: - | O197: =SUM(O198:O217) -> 112283.09 | P197: - | Q197: =SUM(Q198:Q217) -> 4201.358 | R197: - | S197: - | T197: =IF(W197<>0,W197/($F$197+$O$197),0) -> 0 | U197: =IF(Y197<>0,Y197/($F$197+$O$197),0) -> 0.9770819896 | V197: 0.02291801037 | W197: =SUM(W198:W217) -> 0 | X197: 0 | Y197: =SUM(Y198:Y217) -> 35495497.54 | Z197: 229.013257
B198: 2.2 | C198: Superstructure: Upper Floors | E198: Aluminium profiles glass railings, 1.0 x 1.0 m, 20.71 kg/m2, Les fabricants pouvant utiliser les FDES collectives UDM-FFB sont les membres de l Union des Métalliers, les fabricants membres de la section garde-corps du SNFA ainsi que les entreprises qui fabriquent à partir de systèmes commercialisés par les concepteurs gammistes membres du SNFA. La liste complète des membres de L Union des Métalliers peut être consultée sur le site www.metal-pro.org rubrique. Trouver un professionnel. Afin de confirmer que leurs produits remplissent l ensemble des conditions présentées dans le cadre de validité, les métalliers doivent produire une attestation de conformité au cadre de validité, au sein de laquelle sont listés les produits concernés. (UNION DES METALLIERS) | F198: 23999.79 | G198: =IF(AND(F198<>0,$D$31<>0),F198/$D$31,0) -> 0.154844148 | H198: - | I198: 0 | J198: =I198*F198 -> 0 | K198: 0 | M198: 50 | N198: =IF(M198<>0,INT(59/M198),0) -> 1 | O198: =F198*N198 -> 23999.79 | P198: 0 | Q198: =O198*P198 -> 0 | S198: Landfilling (for inert materials) | T198: 0 | U198: 0 | V198: 1 | W198: 0 | X198: 0 | Y198: 0 | Z198: 0
E199: Ceramic wall tiles, glazed or unglazed, 7.5 mm, 18 kg/m2 (Seranit (2020), Inönü plant) | F199: 214408.32 | G199: =IF(AND(F199<>0,$D$31<>0),F199/$D$31,0) -> 1.383340172 | H199: - | I199: 0.06 | J199: 12864.4992 | K199: 0 | M199: 60 | N199: =IF(M199<>0,INT(59/M199),0) -> 0 | O199: =F199*N199 -> 0 | P199: 0.06 | Q199: =O199*P199 -> 0 | S199: Brick/stone crushed to aggregate (for sub-base layers) | T199: 0 | U199: 0.95 | V199: 0.05 | W199: 0 | X199: 0 | Y199: 203687.904 | Z199: 1.314173164
E200: Ready-mix concrete, normal-strength, generic, C30/37 (4400/5400 PSI), 10% (typical) recycled binders in cement (300 kg/m3 / 18.72 lbs/ft3) (One Click LCA) | F200: 24624989.38 | G200: =IF(AND(F200<>0,$D$31<>0),F200/$D$31,0) -> 158.8778694 | H200: - | I200: 0.04 | J200: 984999.5752 | K200: 2462498.938 | M200: 60 | N200: 0 | O200: 0 | P200: 0.04 | Q200: 0 | S200: Concrete crushed to aggregate (for sub-base layers), Portland Cement 300 kg / m3 | T200: 0 | U200: 0.98 | V200: 0.02 | W200: 0 | X200: 0 | Y200: 24132489.59 | Z200: 155.700312
E201: Ready-mix concrete, normal-strength, generic, C30/37 (4400/5400 PSI), 10% (typical) recycled binders in cement (300 kg/m3 / 18.72 lbs/ft3) (One Click LCA) | F201: 5309640 | G201: 34.25724483 | H201: - | I201: 0.05 | J201: 265482 | K201: 530964 | M201: 60 | N201: 0 | O201: 0 | P201: 0.05 | Q201: 0 | S201: Concrete crushed to aggregate (for sub-base layers), Portland Cement 300 kg / m3 | T201: 0 | U201: 0.98 | V201: 0.02 | W201: 0 | X201: 0 | Y201: 5203447.2 | Z201: 33.57209994
E202: Ready-mix concrete, normal-strength, generic, C30/37 (4400/5400 PSI), 30% recycled binders in cement (300 kg/m3 / 18.72 lbs/ft3) (One Click LCA) | F202: 4017636 | G202: 25.92136945 | H202: - | I202: 0.05 | J202: 200881.8 | K202: 1205290.8 | M202: 60 | N202: 0 | O202: 0 | P202: 0.05 | Q202: 0 | S202: Concrete crushed to aggregate (for sub-base layers), Portland Cement 300 kg / m3 | T202: 0 | U202: 0.98 | V202: 0.02 | W202: 0 | X202: 0 | Y202: 3937283.28 | Z202: 25.40294206
E203: Reinforcement steel (rebar), generic, 15% recycled content, A615 (One Click LCA) | F203: 570535.35 | G203: 3.681034716 | H203: - | I203: 0.05 | J203: 28526.7675 | K203: 85580.3025 | M203: 60 | N203: 0 | O203: 0 | P203: 0.05 | Q203: 0 | S203: Steel recycling | T203: 0 | U203: 0.98 | V203: 0.02 | W203: 0 | X203: 0 | Y203: 559124.643 | Z203: 3.607414022
E204: Reinforcement steel (rebar), generic, 90% recycled content, A615 (One Click LCA) | F204: 265482 | G204: 1.712862242 | H204: - | I204: 0.05 | J204: 13274.1 | K204: 238933.8 | M204: 60 | N204: 0 | O204: 0 | P204: 0.05 | Q204: 0 | S204: Steel recycling | T204: 0 | U204: 0.98 | V204: 0.02 | W204: 0 | X204: 0 | Y204: 260172.36 | Z204: 1.678604997
E205: Steel sheets, generic, 15% recycled content, S235, S275 and S355 (One Click LCA) | F205: 1117557.92 | G205: 7.210367423 | H205: - | I205: 0.01 | J205: 11175.5792 | K205: 167633.688 | M205: 60 | N205: 0 | O205: 0 | P205: 0.01 | Q205: 0 | S205: Steel recycling | T205: 0 | U205: 0.98 | V205: 0.02 | W205: 0 | X205: 0 | Y205: 1095206.762 | Z205: 7.066160074
E206: Tile adhesive, 5 kg/m2, webercol pro (SAINT GOBAIN WEBER FRANCE) | F206: 54782 | G206: 0.3534477642 | H206: - | I206: 0.04 | J206: 2191.28 | K206: 0 | M206: 50 | N206: 1 | O206: 54782 | P206: 0.04 | Q206: 2191.28 | S206: Cement/mortar use in a backfill | T206: 0 | U206: 0.95 | V206: 0.05 | W206: 0 | X206: 0 | Y206: 104085.8 | Z206: 0.6715507519
E207: Waterproof, protective, flexible coating, 1.5 kg/l, Lastogum (PCI Augsburg) | F207: 16750.65 | G207: 0.108073451 | H207: - | I207: 0.06 | J207: 1005.039 | K207: 0 | M207: 20 | N207: 2 | O207: 33501.3 | P207: 0.06 | Q207: 2010.078 | S207: Landfilling (for inert materials) | T207: 0 | U207: 0 | V207: 1 | W207: 0 | X207: 0 | Y207: 0 | Z207: 0
G208: 0 | H208: - | I208: 0 | J208: 0 | N208: 0 | O208: 0 | P208: 0 | Q208: 0 | T208: 0 | U208: 0 | V208: 1 | W208: 0 | X208: 0 | Y208: 0 | Z208: 0
G209: 0 | H209: - | I209: 0 | J209: 0 | N209: 0 | O209: 0 | P209: 0 | Q209: 0 | T209: 0 | U209: 0 | V209: 1 | W209: 0 | X209: 0 | Y209: 0 | Z209: 0
G210: 0 | H210: - | I210: 0 | J210: 0 | N210: 0 | O210: 0 | P210: 0 | Q210: 0 | T210: 0 | U210: 0 | V210: 1 | W210: 0 | X210: 0 | Y210: 0 | Z210: 0
... 272 more rows

Sheet Post-Construction Stage
A4: Post-Construction Stage - Circular Economy Statement
D6: Project Details
C7: Project name
C8: Planning application reference number (if applicable)
C9: Applicant
C10: London Borough
C11: Brief description of the project
C12: Author/s
C13: Date of assessment
C14: Number of Use Types
C15: Use Class / Type | D15: Floor Area by use type (m2)
C16: Use Class / Type 1 | D16: Use Class / Type 1 GIA
C17: Use Class / Type 2 | D17: Use Class / Type 2 GIA
C18: Use Class / Type 3 | D18: Use Class / Type 3 GIA
C19: Use Class / Type 4 | D19: Use Class / Type 4 GIA
C20: Use Class / Type 5 | D20: Use Class / Type 5 GIA
C21: Use Class / Type 6 | D21: Use Class / Type 6 GIA
C22: Use Class / Type 7 | D22: Use Class / Type 7 GIA
C23: Use Class / Type 8 | D23: Use Class / Type 8 GIA
C24: Use Class / Type 9 | D24: Use Class / Type 9 GIA
C25: Use Class / Type 10 | D25: Use Class / Type 10 GIA
C26: Use Class / Type 11 | D26: Use Class / Type 11 GIA
C27: Use Class / Type 12 | D27: Use Class / Type 12 GIA
C28: Use Class / Type 13 | D28: Use Class / Type 13 GIA
C29: Use Class / Type 14 | D29: Use Class / Type 14 GIA
C30: Use Class / Type 15 | D30: Use Class / Type 15 GIA
C31: Overall GIA (m2) | D31: =SUM(D16:D30) -> 0
B34: Bill of Materials
B35: Please click the + symbol to the left hand side of the Bill of Materials table to view or hide the input rows for each Building Element Category. The rows for substructure and frame have been unhidden to highlight this. A fixed number of rows has been provided for each Building Element Category based on a sub-set of typical WLCA submissions. Should the number of rows provided not be sufficient to allow input of all materials for a given Building Element Category, Applicants should prioritise the inclusion of the materials with the highest quantity.
C36: BUILDING ELEMENT CATEGORY - LEVEL 1 (based on the RICS New Rules of Measurement (NRM) classification system level 2 sub-elements https://www.rics.org/globalassets/rics-website/media/products/data-products/bcis-construction/bcis-elemental-standard-form-cost-analysis-4th-nrm-edition-2012.pdf) | E36: PRODUCT AND CONSTRUCTION STAGE (MODULE A) | M36: USE STAGE (MODULE B) | R36: END OF LIFE STAGE (MODULE C) | W36: BENEFITS BEYOND THE SYSTEM BOUNDARY (MODULE D)
C37: Building Element Category | E37: Material Type | F37: Material quantity (Module A) (kg) | G37: Material intensity (Module A) (kg/m2 GIA) | H37: Performance Indicator (LPG Appendix 1) | I37: Construction Waste Factor (Module A) | J37: Construction Waste (Module A) (kg) | K37: Recycled Content by mass (kg) | L37: Recycled Content by value (%) | M37: Expected Lifespan (years) | N37: Number of Replacements (over assumed 60-year period) | O37: Repair and Replacement quantities of materials (Module B) (kg) | P37: Construction Waste Factor (Module B) | Q37: Construction Waste (Module B) (kg) | R37: Design for Disassembly | S37: Assumed End of Life Scenario (Description) | T37: % Reusing | U37: % Recycling | V37: % Landfill | W37: Estimated reusable materials (kg) | X37: Estimated reusable materials intensity (kg/m2 GIA) | Y37: Estimated recyclable materials (kg) | Z37: Estimated recyclable materials intensity (kg/m2 GIA)
B38: 0.1 | C38: Demolition: Toxic/Hazardous/Contaminated Material Treatment | E38: - | F38: =SUM(F39:F53) -> 0 | G38: =IF(AND(F38<>0,$D$31<>0),F38/$D$31,0) -> 0 | H38: - | I38: - | J38: =SUM(J39:J53) -> 0 | K38: - | L38: - | M38: - | N38: - | O38: =SUM(O39:O53) -> 0 | P38: - | Q38: =SUM(Q39:Q53) -> 0 | R38: - | S38: - | T38: =IF(W38<>0,W38/($F$91+$O$91),0) -> 0 | U38: =IF(Y38<>0,Y38/($F$91+$O$91),0) -> 0 | V38: =1-T38-U38 -> 1 | W38: =SUM(W39:W53) -> 0 | X38: =IF(AND(W38<>0,$D$31<>0),W38/$D$31,0) -> 0 | Y38: =SUM(Y39:Y53) -> 0 | Z38: =IF(AND(Y38<>0,$D$31<>0),Y38/$D$31,0) -> 0
B39: 0.1 | C39: Demolition: Toxic/Hazardous/Contaminated Material Treatment | G39: =IF(AND(F39<>0,$D$31<>0),F39/$D$31,0) -> 0 | H39: - | I39: 0 | J39: =F39*I39 -> 0 | N39: =IF(M39<>0,INT(59/M39),0) -> 0 | O39: =F39*N39 -> 0 | P39: 0 | Q39: =O39*P39 -> 0 | T39: 0 | U39: 0 | V39: =1-T39-U39 -> 1 | W39: =T39*(F39+O39) -> 0 | X39: =IF(AND(W39<>0,$D$31<>0),W39/$D$31,0) -> 0 | Y39: =U39*(F39+O39) -> 0 | Z39: =IF(AND(Y39<>0,$D$31<>0),Y39/$D$31,0) -> 0
G40: =IF(AND(F40<>0,$D$31<>0),F40/$D$31,0) -> 0 | H40: - | I40: 0 | J40: =F40*I40 -> 0 | N40: =IF(M40<>0,INT(59/M40),0) -> 0 | O40: =F40*N40 -> 0 | P40: 0 | Q40: =O40*P40 -> 0 | T40: 0 | U40: 0 | V40: =1-T40-U40 -> 1 | W40: =T40*(F40+O40) -> 0 | X40: =IF(AND(W40<>0,$D$31<>0),W40/$D$31,0) -> 0 | Y40: =U40*(F40+O40) -> 0 | Z40: 0
G41: 0 | H41: - | I41: 0 | J41: 0 | N41: 0 | O41: 0 | P41: 0 | Q41: 0 | T41: 0 | U41: 0 | V41: 1 | W41: 0 | X41: 0 | Y41: 0 | Z41: 0
G42: 0 | H42: - | I42: 0 | J42: 0 | N42: 0 | O42: 0 | P42: 0 | Q42: 0 | T42: 0 | U42: 0 | V42: 1 | W42: 0 | X42: 0 | Y42: 0 | Z42: 0
G43: 0 | H43: - | I43: 0 | J43: 0 | N43: 0 | O43: 0 | P43: 0 | Q43: 0 | T43: 0 | U43: 0 | V43: 1 | W43: 0 | X43: 0 | Y43: 0 | Z43: 0
G44: 0 | H44: - | I44: 0 | J44: 0 | N44: 0 | O44: 0 | P44: 0 | Q44: 0 | T44: 0 | U44: 0 | V44: 1 | W44: 0 | X44: 0 | Y44: 0 | Z44: 0
G45: 0 | H45: - | I45: 0 | J45: 0 | N45: 0 | O45: 0 | P45: 0 | Q45: 0 | T45: 0 | U45: 0 | V45: 1 | W45: 0 | X45: 0 | Y45: 0 | Z45: 0
G46: 0 | H46: - | I46: 0 | J46: 0 | N46: 0 | O46: 0 | P46: 0 | Q46: 0 | T46: 0 | U46: 0 | V46: 1 | W46: 0 | X46: 0 | Y46: 0 | Z46: 0
G47: 0 | H47: - | I47: 0 | J47: 0 | N47: 0 | O47: 0 | P47: 0 | Q47: 0 | T47: 0 | U47: 0 | V47: 1 | W47: 0 | X47: 0 | Y47: 0 | Z47: 0
G48: 0 | H48: - | I48: 0 | J48: 0 | N48: 0 | O48: 0 | P48: 0 | Q48: 0 | T48: 0 | U48: 0 | V48: 1 | W48: 0 | X48: 0 | Y48: 0 | Z48: 0
G49: 0 | H49: - | I49: 0 | J49: 0 | N49: 0 | O49: 0 | P49: 0 | Q49: 0 | T49: 0 | U49: 0 | V49: 1 | W49: 0 | X49: 0 | Y49: 0 | Z49: 0
G50: 0 | H50: - | I50: 0 | J50: 0 | N50: 0 | O50: 0 | P50: 0 | Q50: 0 | T50: 0 | U50: 0 | V50: 1 | W50: 0 | X50: 0 | Y50: 0 | Z50: 0
G51: 0 | H51: - | I51: 0 | J51: 0 | N51: 0 | O51: 0 | P51: 0 | Q51: 0 | T51: 0 | U51: 0 | V51: 1 | W51: 0 | X51: 0 | Y51: 0 | Z51: 0
G52: 0 | H52: - | I52: 0 | J52: 0 | N52: 0 | O52: 0 | P52: 0 | Q52: 0 | T52: 0 | U52: 0 | V52: 1 | W52: 0 | X52: 0 | Y52: 0 | Z52: 0
G53: 0 | H53: - | I53: 0 | J53: 0 | N53: 0 | O53: 0 | P53: 0 | Q53: 0 | T53: 0 | U53: 0 | V53: 1 | W53: 0 | X53: 0 | Y53: 0 | Z53: 0
B54: 0.2 | C54: Major Demolition Works | E54: - | F54: =SUM(F55:F69) -> 0 | G54: =IF(AND(F54<>0,$D$31<>0),F54/$D$31,0) -> 0 | H54: - | I54: - | J54: =SUM(J55:J69) -> 0 | K54: - | L54: - | M54: - | N54: - | O54: =SUM(O55:O69) -> 0 | P54: - | Q54: =SUM(Q55:Q69) -> 0 | R54: - | S54: - | T54: =IF(W54<>0,W54/($F$107+$O$107),0) -> 0 | U54: =IF(Y54<>0,Y54/($F$107+$O$107),0) -> 0 | V54: =1-T54-U54 -> 1 | W54: =SUM(W55:W69) -> 0 | X54: 0 | Y54: =SUM(Y55:Y69) -> 0 | Z54: 0
B55: 0.2 | C55: Major Demolition Works | G55: =IF(AND(F55<>0,$D$31<>0),F55/$D$31,0) -> 0 | H55: - | I55: 0 | J55: =I55*F55 -> 0 | N55: =IF(M55<>0,INT(59/M55),0) -> 0 | O55: =F55*N55 -> 0 | P55: 0 | Q55: =O55*P55 -> 0 | T55: 0 | U55: 0 | V55: 1 | W55: 0 | X55: 0 | Y55: 0 | Z55: 0
G56: =IF(AND(F56<>0,$D$31<>0),F56/$D$31,0) -> 0 | H56: - | I56: 0 | J56: 0 | N56: =IF(M56<>0,INT(59/M56),0) -> 0 | O56: =F56*N56 -> 0 | P56: 0 | Q56: =O56*P56 -> 0 | T56: 0 | U56: 0 | V56: 1 | W56: 0 | X56: 0 | Y56: 0 | Z56: 0
G57: =IF(AND(F57<>0,$D$31<>0),F57/$D$31,0) -> 0 | H57: - | I57: 0 | J57: 0 | N57: 0 | O57: 0 | P57: 0 | Q57: 0 | T57: 0 | U57: 0 | V57: 1 | W57: 0 | X57: 0 | Y57: 0 | Z57: 0
G58: 0 | H58: - | I58: 0 | J58: 0 | N58: 0 | O58: 0 | P58: 0 | Q58: 0 | T58: 0 | U58: 0 | V58: 1 | W58: 0 | X58: 0 | Y58: 0 | Z58: 0
G59: 0 | H59: - | I59: 0 | J59: 0 | N59: 0 | O59: 0 | P59: 0 | Q59: 0 | T59: 0 | U59: 0 | V59: 1 | W59: 0 | X59: 0 | Y59: 0 | Z59: 0
G60: 0 | H60: - | I60: 0 | J60: 0 | N60: 0 | O60: 0 | P60: 0 | Q60: 0 | T60: 0 | U60: 0 | V60: 1 | W60: 0 | X60: 0 | Y60: 0 | Z60: 0
G61: 0 | H61: - | I61: 0 | J61: 0 | N61: 0 | O61: 0 | P61: 0 | Q61: 0 | T61: 0 | U61: 0 | V61: 1 | W61: 0 | X61: 0 | Y61: 0 | Z61: 0
G62: 0 | H62: - | I62: 0 | J62: 0 | N62: 0 | O62: 0 | P62: 0 | Q62: 0 | T62: 0 | U62: 0 | V62: 1 | W62: 0 | X62: 0 | Y62: 0 | Z62: 0
G63: 0 | H63: - | I63: 0 | J63: 0 | N63: 0 | O63: 0 | P63: 0 | Q63: 0 | T63: 0 | U63: 0 | V63: 1 | W63: 0 | X63: 0 | Y63: 0 | Z63: 0
G64: 0 | H64: - | I64: 0 | J64: 0 | N64: 0 | O64: 0 | P64: 0 | Q64: 0 | T64: 0 | U64: 0 | V64: 1 | W64: 0 | X64: 0 | Y64: 0 | Z64: 0
G65: 0 | H65: - | I65: 0 | J65: 0 | N65: 0 | O65: 0 | P65: 0 | Q65: 0 | T65: 0 | U65: 0 | V65: 1 | W65: 0 | X65: 0 | Y65: 0 | Z65: 0
G66: 0 | H66: - | I66: 0 | J66: 0 | N66: 0 | O66: 0 | P66: 0 | Q66: 0 | T66: 0 | U66: 0 | V66: 1 | W66: 0 | X66: 0 | Y66: 0 | Z66: 0
G67: 0 | H67: - | I67: 0 | J67: 0 | N67: 0 | O67: 0 | P67: 0 | Q67: 0 | T67: 0 | U67: 0 | V67: 1 | W67: 0 | X67: 0 | Y67: 0 | Z67: 0
G68: 0 | H68: - | I68: 0 | J68: 0 | N68: 0 | O68: 0 | P68: 0 | Q68: 0 | T68: 0 | U68: 0 | V68: 1 | W68: 0 | X68: 0 | Y68: 0 | Z68: 0
G69: 0 | H69: - | I69: 0 | J69: 0 | N69: 0 | O69: 0 | P69: 0 | Q69: 0 | T69: 0 | U69: 0 | V69: 1 | W69: 0 | X69: 0 | Y69: 0 | Z69: 0
B70: 0.3 | C70: Temporary Support to Adjacent Structures | E70: - | F70: =SUM(F71:F85) -> 0 | G70: =IF(AND(F70<>0,$D$31<>0),F70/$D$31,0) -> 0 | H70: - | I70: - | J70: =SUM(J71:J85) -> 0 | K70: - | L70: - | M70: - | N70: - | O70: =SUM(O71:O85) -> 0 | P70: - | Q70: =SUM(Q71:Q85) -> 0 | R70: - | S70: - | T70: =IF(W70<>0,W70/($F$123+$O$123),0) -> 0 | U70: =IF(Y70<>0,Y70/($F$123+$O$123),0) -> 0 | V70: 1 | W70: =SUM(W71:W85) -> 0 | X70: 0 | Y70: =SUM(Y71:Y85) -> 0 | Z70: 0
B71: 0.3 | C71: Temporary Support to Adjacent Structures | G71: =IF(AND(F71<>0,$D$31<>0),F71/$D$31,0) -> 0 | H71: - | I71: 0 | J71: =I71*F71 -> 0 | N71: =IF(M71<>0,INT(59/M71),0) -> 0 | O71: =F71*N71 -> 0 | P71: 0 | Q71: =O71*P71 -> 0 | T71: 0 | U71: 0 | V71: 1 | W71: 0 | X71: 0 | Y71: 0 | Z71: 0
G72: =IF(AND(F72<>0,$D$31<>0),F72/$D$31,0) -> 0 | H72: - | I72: 0 | J72: 0 | N72: =IF(M72<>0,INT(59/M72),0) -> 0 | O72: =F72*N72 -> 0 | P72: 0 | Q72: =O72*P72 -> 0 | T72: 0 | U72: 0 | V72: 1 | W72: 0 | X72: 0 | Y72: 0 | Z72: 0
G73: =IF(AND(F73<>0,$D$31<>0),F73/$D$31,0) -> 0 | H73: - | I73: 0 | J73: 0 | N73: 0 | O73: 0 | P73: 0 | Q73: 0 | T73: 0 | U73: 0 | V73: 1 | W73: 0 | X73: 0 | Y73: 0 | Z73: 0
G74: 0 | H74: - | I74: 0 | J74: 0 | N74: 0 | O74: 0 | P74: 0 | Q74: 0 | T74: 0 | U74: 0 | V74: 1 | W74: 0 | X74: 0 | Y74: 0 | Z74: 0
G75: 0 | H75: - | I75: 0 | J75: 0 | N75: 0 | O75: 0 | P75: 0 | Q75: 0 | T75: 0 | U75: 0 | V75: 1 | W75: 0 | X75: 0 | Y75: 0 | Z75: 0
G76: 0 | H76: - | I76: 0 | J76: 0 | N76: 0 | O76: 0 | P76: 0 | Q76: 0 | T76: 0 | U76: 0 | V76: 1 | W76: 0 | X76: 0 | Y76: 0 | Z76: 0
G77: 0 | H77: - | I77: 0 | J77: 0 | N77: 0 | O77: 0 | P77: 0 | Q77: 0 | T77: 0 | U77: 0 | V77: 1 | W77: 0 | X77: 0 | Y77: 0 | Z77: 0
G78: 0 | H78: - | I78: 0 | J78: 0 | N78: 0 | O78: 0 | P78: 0 | Q78: 0 | T78: 0 | U78: 0 | V78: 1 | W78: 0 | X78: 0 | Y78: 0 | Z78: 0
G79: 0 | H79: - | I79: 0 | J79: 0 | N79: 0 | O79: 0 | P79: 0 | Q79: 0 | T79: 0 | U79: 0 | V79: 1 | W79: 0 | X79: 0 | Y79: 0 | Z79: 0
G80: 0 | H80: - | I80: 0 | J80: 0 | N80: 0 | O80: 0 | P80: 0 | Q80: 0 | T80: 0 | U80: 0 | V80: 1 | W80: 0 | X80: 0 | Y80: 0 | Z80: 0
G81: 0 | H81: - | I81: 0 | J81: 0 | N81: 0 | O81: 0 | P81: 0 | Q81: 0 | T81: 0 | U81: 0 | V81: 1 | W81: 0 | X81: 0 | Y81: 0 | Z81: 0
G82: 0 | H82: - | I82: 0 | J82: 0 | N82: 0 | O82: 0 | P82: 0 | Q82: 0 | T82: 0 | U82: 0 | V82: 1 | W82: 0 | X82: 0 | Y82: 0 | Z82: 0
G83: 0 | H83: - | I83: 0 | J83: 0 | N83: 0 | O83: 0 | P83: 0 | Q83: 0 | T83: 0 | U83: 0 | V83: 1 | W83: 0 | X83: 0 | Y83: 0 | Z83: 0
G84: 0 | H84: - | I84: 0 | J84: 0 | N84: 0 | O84: 0 | P84: 0 | Q84: 0 | T84: 0 | U84: 0 | V84: 1 | W84: 0 | X84: 0 | Y84: 0 | Z84: 0
G85: 0 | H85: - | I85: 0 | J85: 0 | N85: 0 | O85: 0 | P85: 0 | Q85: 0 | T85: 0 | U85: 0 | V85: 1 | W85: 0 | X85: 0 | Y85: 0 | Z85: 0
B86: 0.4 | C86: Specialist Ground Works | E86: - | F86: =SUM(F87:F101) -> 0 | G86: =IF(AND(F86<>0,$D$31<>0),F86/$D$31,0) -> 0 | H86: - | I86: - | J86: =SUM(J87:J101) -> 0 | K86: - | L86: - | M86: - | N86: - | O86: =SUM(O87:O101) -> 0 | P86: - | Q86: =SUM(Q87:Q101) -> 0 | R86: - | S86: - | T86: =IF(W86<>0,W86/($F$139+$O$139),0) -> 0 | U86: =IF(Y86<>0,Y86/($F$139+$O$139),0) -> 0 | V86: 1 | W86: =SUM(W87:W101) -> 0 | X86: 0 | Y86: =SUM(Y87:Y101) -> 0 | Z86: 0
B87: 0.4 | C87: Specialist Ground Works | G87: =IF(AND(F87<>0,$D$31<>0),F87/$D$31,0) -> 0 | H87: - | I87: 0 | J87: =I87*F87 -> 0 | N87: =IF(M87<>0,INT(59/M87),0) -> 0 | O87: =F87*N87 -> 0 | P87: 0 | Q87: =O87*P87 -> 0 | T87: 0 | U87: 0 | V87: 1 | W87: 0 | X87: 0 | Y87: 0 | Z87: 0
G88: =IF(AND(F88<>0,$D$31<>0),F88/$D$31,0) -> 0 | H88: - | I88: 0 | J88: 0 | N88: =IF(M88<>0,INT(59/M88),0) -> 0 | O88: =F88*N88 -> 0 | P88: 0 | Q88: =O88*P88 -> 0 | T88: 0 | U88: 0 | V88: 1 | W88: 0 | X88: 0 | Y88: 0 | Z88: 0
G89: =IF(AND(F89<>0,$D$31<>0),F89/$D$31,0) -> 0 | H89: - | I89: 0 | J89: 0 | N89: 0 | O89: 0 | P89: 0 | Q89: 0 | T89: 0 | U89: 0 | V89: 1 | W89: 0 | X89: 0 | Y89: 0 | Z89: 0
G90: 0 | H90: - | I90: 0 | J90: 0 | N90: 0 | O90: 0 | P90: 0 | Q90: 0 | T90: 0 | U90: 0 | V90: 1 | W90: 0 | X90: 0 | Y90: 0 | Z90: 0
G91: 0 | H91: - | I91: 0 | J91: 0 | N91: 0 | O91: 0 | P91: 0 | Q91: 0 | T91: 0 | U91: 0 | V91: 1 | W91: 0 | X91: 0 | Y91: 0 | Z91: 0
G92: 0 | H92: - | I92: 0 | J92: 0 | N92: 0 | O92: 0 | P92: 0 | Q92: 0 | T92: 0 | U92: 0 | V92: 1 | W92: 0 | X92: 0 | Y92: 0 | Z92: 0
G93: 0 | H93: - | I93: 0 | J93: 0 | N93: 0 | O93: 0 | P93: 0 | Q93: 0 | T93: 0 | U93: 0 | V93: 1 | W93: 0 | X93: 0 | Y93: 0 | Z93: 0
G94: 0 | H94: - | I94: 0 | J94: 0 | N94: 0 | O94: 0 | P94: 0 | Q94: 0 | T94: 0 | U94: 0 | V94: 1 | W94: 0 | X94: 0 | Y94: 0 | Z94: 0
G95: 0 | H95: - | I95: 0 | J95: 0 | N95: 0 | O95: 0 | P95: 0 | Q95: 0 | T95: 0 | U95: 0 | V95: 1 | W95: 0 | X95: 0 | Y95: 0 | Z95: 0
G96: 0 | H96: - | I96: 0 | J96: 0 | N96: 0 | O96: 0 | P96: 0 | Q96: 0 | T96: 0 | U96: 0 | V96: 1 | W96: 0 | X96: 0 | Y96: 0 | Z96: 0
G97: 0 | H97: - | I97: 0 | J97: 0 | N97: 0 | O97: 0 | P97: 0 | Q97: 0 | T97: 0 | U97: 0 | V97: 1 | W97: 0 | X97: 0 | Y97: 0 | Z97: 0
G98: 0 | H98: - | I98: 0 | J98: 0 | N98: 0 | O98: 0 | P98: 0 | Q98: 0 | T98: 0 | U98: 0 | V98: 1 | W98: 0 | X98: 0 | Y98: 0 | Z98: 0
G99: 0 | H99: - | I99: 0 | J99: 0 | N99: 0 | O99: 0 | P99: 0 | Q99: 0 | T99: 0 | U99: 0 | V99: 1 | W99: 0 | X99: 0 | Y99: 0 | Z99: 0
G100: 0 | H100: - | I100: 0 | J100: 0 | N100: 0 | O100: 0 | P100: 0 | Q100: 0 | T100: 0 | U100: 0 | V100: 1 | W100: 0 | X100: 0 | Y100: 0 | Z100: 0
G101: 0 | H101: - | I101: 0 | J101: 0 | N101: 0 | O101: 0 | P101: 0 | Q101: 0 | T101: 0 | U101: 0 | V101: 1 | W101: 0 | X101: 0 | Y101: 0 | Z101: 0
B102: 1 | C102: Substructure | E102: - | F102: =SUM(F103:F122) -> 0 | G102: =IF(AND(F102<>0,$D$31<>0),F102/$D$31,0) -> 0 | H102: =SUMPRODUCT((C38:D401="Substructure")*G38:G401) -> 0 | I102: - | J102: =SUM(J103:J122) -> 0 | K102: - | L102: - | M102: - | N102: - | O102: =SUM(O103:O122) -> 0 | P102: - | Q102: =SUM(Q103:Q122) -> 0 | R102: - | S102: - | T102: =IF(W102<>0,W102/($F$155+$O$155),0) -> 0 | U102: =IF(Y102<>0,Y102/($F$155+$O$155),0) -> 0 | V102: 1 | W102: =SUM(W103:W122) -> 0 | X102: 0 | Y102: =SUM(Y103:Y122) -> 0 | Z102: 0
B103: 1 | C103: Substructure | G103: =IF(AND(F103<>0,$D$31<>0),F103/$D$31,0) -> 0 | H103: - | I103: 0 | J103: =I103*F103 -> 0 | N103: =IF(M103<>0,INT(59/M103),0) -> 0 | O103: =F103*N103 -> 0 | P103: 0 | Q103: =O103*P103 -> 0 | T103: 0 | U103: 0 | V103: 1 | W103: =T103*(F103+O103) -> 0 | X103: 0 | Y103: =U103*(F103+O103) -> 0 | Z103: 0
G104: =IF(AND(F104<>0,$D$31<>0),F104/$D$31,0) -> 0 | H104: - | I104: 0 | J104: 0 | N104: =IF(M104<>0,INT(59/M104),0) -> 0 | O104: =F104*N104 -> 0 | P104: 0 | Q104: =O104*P104 -> 0 | T104: 0 | U104: 0 | V104: =1-T104-U104 -> 1 | W104: 0 | X104: =IF(AND(W104<>0,$D$31<>0),W104/$D$31,0) -> 0 | Y104: 0 | Z104: 0
G105: =IF(AND(F105<>0,$D$31<>0),F105/$D$31,0) -> 0 | H105: - | I105: 0 | J105: 0 | N105: 0 | O105: 0 | P105: 0 | Q105: 0 | T105: 0 | U105: 0 | V105: 1 | W105: 0 | X105: 0 | Y105: 0 | Z105: 0
G106: 0 | H106: - | I106: 0 | J106: 0 | N106: 0 | O106: 0 | P106: 0 | Q106: 0 | T106: 0 | U106: 0 | V106: 1 | W106: 0 | X106: 0 | Y106: 0 | Z106: 0
G107: 0 | H107: - | I107: 0 | J107: 0 | N107: 0 | O107: 0 | P107: 0 | Q107: 0 | T107: 0 | U107: 0 | V107: 1 | W107: 0 | X107: 0 | Y107: 0 | Z107: 0
G108: 0 | H108: - | I108: 0 | J108: 0 | N108: 0 | O108: 0 | P108: 0 | Q108: 0 | T108: 0 | U108: 0 | V108: 1 | W108: 0 | X108: 0 | Y108: 0 | Z108: 0
G109: 0 | H109: - | I109: 0 | J109: 0 | N109: 0 | O109: 0 | P109: 0 | Q109: 0 | T109: 0 | U109: 0 | V109: 1 | W109: 0 | X109: 0 | Y109: 0 | Z109: 0
G110: 0 | H110: - | I110: 0 | J110: 0 | N110: 0 | O110: 0 | P110: 0 | Q110: 0 | T110: 0 | U110: 0 | V110: 1 | W110: 0 | X110: 0 | Y110: 0 | Z110: 0
G111: 0 | H111: - | I111: 0 | J111: 0 | N111: 0 | O111: 0 | P111: 0 | Q111: 0 | T111: 0 | U111: 0 | V111: 1 | W111: 0 | X111: 0 | Y111: 0 | Z111: 0
G112: 0 | H112: - | I112: 0 | J112: 0 | N112: 0 | O112: 0 | P112: 0 | Q112: 0 | T112: 0 | U112: 0 | V112: 1 | W112: 0 | X112: 0 | Y112: 0 | Z112: 0
G113: 0 | H113: - | I113: 0 | J113: 0 | N113: 0 | O113: 0 | P113: 0 | Q113: 0 | T113: 0 | U113: 0 | V113: 1 | W113: 0 | X113: 0 | Y113: 0 | Z113: 0
G114: 0 | H114: - | I114: 0 | J114: 0 | N114: 0 | O114: 0 | P114: 0 | Q114: 0 | T114: 0 | U114: 0 | V114: 1 | W114: 0 | X114: 0 | Y114: 0 | Z114: 0
G115: 0 | H115: - | I115: 0 | J115: 0 | N115: 0 | O115: 0 | P115: 0 | Q115: 0 | T115: 0 | U115: 0 | V115: 1 | W115: 0 | X115: 0 | Y115: 0 | Z115: 0
G116: 0 | H116: - | I116: 0 | J116: 0 | N116: 0 | O116: 0 | P116: 0 | Q116: 0 | T116: 0 | U116: 0 | V116: 1 | W116: 0 | X116: 0 | Y116: 0 | Z116: 0
G117: =IF(AND(F117<>0,$D$31<>0),F117/$D$31,0) -> 0 | H117: - | I117: 0 | J117: 0 | N117: 0 | O117: 0 | P117: 0 | Q117: 0 | T117: 0 | U117: 0 | V117: 1 | W117: 0 | X117: 0 | Y117: 0 | Z117: 0
G118: =IF(AND(F118<>0,$D$31<>0),F118/$D$31,0) -> 0 | H118: - | I118: 0 | J118: 0 | N118: 0 | O118: 0 | P118: 0 | Q118: 0 | T118: 0 | U118: 0 | V118: 1 | W118: 0 | X118: 0 | Y118: 0 | Z118: 0
G119: =IF(AND(F119<>0,$D$31<>0),F119/$D$31,0) -> 0 | H119: - | I119: 0 | J119: 0 | N119: 0 | O119: 0 | P119: 0 | Q119: 0 | T119: 0 | U119: 0 | V119: 1 | W119: 0 | X119: 0 | Y119: 0 | Z119: 0
G120: 0 | H120: - | I120: 0 | J120: 0 | N120: 0 | O120: 0 | P120: 0 | Q120: 0 | T120: 0 | U120: 0 | V120: 1 | W120: 0 | X120: 0 | Y120: 0 | Z120: 0
G121: 0 | H121: - | I121: 0 | J121: 0 | N121: 0 | O121: 0 | P121: 0 | Q121: 0 | T121: 0 | U121: 0 | V121: 1 | W121: 0 | X121: 0 | Y121: 0 | Z121: 0
G122: =IF(AND(F122<>0,$D$31<>0),F122/$D$31,0) -> 0 | H122: - | I122: 0 | J122: 0 | N122: =IF(M122<>0,INT(59/M122),0) -> 0 | O122: 0 | P122: 0 | Q122: 0 | T122: 0 | U122: 0 | V122: 1 | W122: 0 | X122: 0 | Y122: 0 | Z122: 0
B123: 2.1 | C123: Superstructure: Frame | E123: - | F123: =SUM(F124:F143) -> 0 | G123: =IF(AND(F123<>0,$D$31<>0),F123/$D$31,0) -> 0 | H123: =SUMPRODUCT((C38:D401="Superstructure: Frame")*G38:G401) -> 0 | I123: - | J123: =SUM(J124:J143) -> 0 | K123: - | L123: - | M123: - | N123: - | O123: =SUM(O124:O143) -> 0 | P123: - | Q123: =SUM(Q124:Q143) -> 0 | R123: - | S123: - | T123: =IF(W123<>0,W123/($F$176+$O$176),0) -> 0 | U123: =IF(Y123<>0,Y123/($F$176+$O$176),0) -> 0 | V123: 1 | W123: =SUM(W124:W143) -> 0 | X123: 0 | Y123: =SUM(Y124:Y143) -> 0 | Z123: 0
B124: 2.1 | C124: Superstructure: Frame | G124: =IF(AND(F124<>0,$D$31<>0),F124/$D$31,0) -> 0 | H124: - | I124: 0 | J124: =I124*F124 -> 0 | N124: =IF(M124<>0,INT(59/M124),0) -> 0 | O124: =F124*N124 -> 0 | P124: 0 | Q124: =O124*P124 -> 0 | T124: 0 | U124: 0 | V124: 1 | W124: =T124*(F124+O124) -> 0 | X124: 0 | Y124: =U124*(F124+O124) -> 0 | Z124: 0
G125: =IF(AND(F125<>0,$D$31<>0),F125/$D$31,0) -> 0 | H125: - | I125: 0 | J125: 0 | N125: =IF(M125<>0,INT(59/M125),0) -> 0 | O125: =F125*N125 -> 0 | P125: 0 | Q125: =O125*P125 -> 0 | T125: 0 | U125: 0 | V125: 1 | W125: 0 | X125: 0 | Y125: 0 | Z125: 0
G126: =IF(AND(F126<>0,$D$31<>0),F126/$D$31,0) -> 0 | H126: - | I126: 0 | J126: 0 | N126: 0 | O126: 0 | P126: 0 | Q126: 0 | T126: 0 | U126: 0 | V126: 1 | W126: 0 | X126: 0 | Y126: 0 | Z126: 0
G127: 0 | H127: - | I127: 0 | J127: 0 | N127: 0 | O127: 0 | P127: 0 | Q127: 0 | T127: 0 | U127: 0 | V127: 1 | W127: 0 | X127: 0 | Y127: 0 | Z127: 0
G128: 0 | H128: - | I128: 0 | J128: 0 | N128: 0 | O128: 0 | P128: 0 | Q128: 0 | T128: 0 | U128: 0 | V128: 1 | W128: 0 | X128: 0 | Y128: 0 | Z128: 0
G129: 0 | H129: - | I129: 0 | J129: 0 | N129: 0 | O129: 0 | P129: 0 | Q129: 0 | T129: 0 | U129: 0 | V129: 1 | W129: 0 | X129: 0 | Y129: 0 | Z129: 0
G130: 0 | H130: - | I130: 0 | J130: 0 | N130: 0 | O130: 0 | P130: 0 | Q130: 0 | T130: 0 | U130: 0 | V130: 1 | W130: 0 | X130: 0 | Y130: 0 | Z130: 0
G131: 0 | H131: - | I131: 0 | J131: 0 | N131: 0 | O131: 0 | P131: 0 | Q131: 0 | T131: 0 | U131: 0 | V131: 1 | W131: 0 | X131: 0 | Y131: 0 | Z131: 0
G132: 0 | H132: - | I132: 0 | J132: 0 | N132: 0 | O132: 0 | P132: 0 | Q132: 0 | T132: 0 | U132: 0 | V132: 1 | W132: 0 | X132: 0 | Y132: 0 | Z132: 0
G133: 0 | H133: - | I133: 0 | J133: 0 | N133: 0 | O133: 0 | P133: 0 | Q133: 0 | T133: 0 | U133: 0 | V133: 1 | W133: 0 | X133: 0 | Y133: 0 | Z133: 0
G134: 0 | H134: - | I134: 0 | J134: 0 | N134: 0 | O134: 0 | P134: 0 | Q134: 0 | T134: 0 | U134: 0 | V134: 1 | W134: 0 | X134: 0 | Y134: 0 | Z134: 0
G135: 0 | H135: - | I135: 0 | J135: 0 | N135: 0 | O135: 0 | P135: 0 | Q135: 0 | T135: 0 | U135: 0 | V135: 1 | W135: 0 | X135: 0 | Y135: 0 | Z135: 0
G136: 0 | H136: - | I136: 0 | J136: 0 | N136: 0 | O136: 0 | P136: 0 | Q136: 0 | T136: 0 | U136: 0 | V136: 1 | W136: 0 | X136: 0 | Y136: 0 | Z136: 0
G137: 0 | H137: - | I137: 0 | J137: 0 | N137: 0 | O137: 0 | P137: 0 | Q137: 0 | T137: 0 | U137: 0 | V137: 1 | W137: 0 | X137: 0 | Y137: 0 | Z137: 0
G138: =IF(AND(F138<>0,$D$31<>0),F138/$D$31,0) -> 0 | H138: - | I138: 0 | J138: 0 | N138: 0 | O138: 0 | P138: 0 | Q138: 0 | T138: 0 | U138: 0 | V138: 1 | W138: 0 | X138: 0 | Y138: 0 | Z138: 0
G139: =IF(AND(F139<>0,$D$31<>0),F139/$D$31,0) -> 0 | H139: - | I139: 0 | J139: 0 | N139: 0 | O139: 0 | P139: 0 | Q139: 0 | T139: 0 | U139: 0 | V139: 1 | W139: 0 | X139: 0 | Y139: 0 | Z139: 0
G140: =IF(AND(F140<>0,$D$31<>0),F140/$D$31,0) -> 0 | H140: - | I140: 0 | J140: 0 | N140: 0 | O140: 0 | P140: 0 | Q140: 0 | T140: 0 | U140: 0 | V140: 1 | W140: 0 | X140: 0 | Y140: 0 | Z140: 0
G141: =IF(AND(F141<>0,$D$31<>0),F141/$D$31,0) -> 0 | H141: - | I141: 0 | J141: 0 | N141: 0 | O141: 0 | P141: 0 | Q141: 0 | T141: 0 | U141: 0 | V141: 1 | W141: 0 | X141: 0 | Y141: 0 | Z141: 0
G142: 0 | H142: - | I142: 0 | J142: 0 | N142: 0 | O142: 0 | P142: 0 | Q142: 0 | T142: 0 | U142: 0 | V142: 1 | W142: 0 | X142: 0 | Y142: 0 | Z142: 0
G143: 0 | H143: - | I143: 0 | J143: 0 | N143: 0 | O143: 0 | P143: 0 | Q143: 0 | T143: 0 | U143: 0 | V143: 1 | W143: 0 | X143: 0 | Y143: 0 | Z143: 0
B144: 2.2 | C144: Superstructure: Upper Floors | E144: - | F144: =SUM(F145:F164) -> 0 | G144: =IF(AND(F144<>0,$D$31<>0),F144/$D$31,0) -> 0 | H144: =SUMPRODUCT((C123:D406="Superstructure: Upper Floors")*G123:G406) -> 0 | I144: - | J144: =SUM(J145:J164) -> 0 | K144: - | L144: - | M144: - | N144: - | O144: =SUM(O145:O164) -> 0 | P144: - | Q144: =SUM(Q145:Q164) -> 0 | R144: - | S144: - | T144: =IF(W144<>0,W144/($F$197+$O$197),0) -> 0 | U144: =IF(Y144<>0,Y144/($F$197+$O$197),0) -> 0 | V144: 1 | W144: =SUM(W145:W164) -> 0 | X144: 0 | Y144: =SUM(Y145:Y164) -> 0 | Z144: 0
B145: 2.2 | C145: Superstructure: Upper Floors | G145: =IF(AND(F145<>0,$D$31<>0),F145/$D$31,0) -> 0 | H145: - | I145: 0 | J145: =I145*F145 -> 0 | N145: =IF(M145<>0,INT(59/M145),0) -> 0 | O145: =F145*N145 -> 0 | P145: 0 | Q145: =O145*P145 -> 0 | T145: 0 | U145: 0 | V145: 1 | W145: =T145*(F145+O145) -> 0 | X145: 0 | Y145: =U145*(F145+O145) -> 0 | Z145: 0
G146: =IF(AND(F146<>0,$D$31<>0),F146/$D$31,0) -> 0 | H146: - | I146: 0 | J146: 0 | N146: =IF(M146<>0,INT(59/M146),0) -> 0 | O146: =F146*N146 -> 0 | P146: 0 | Q146: =O146*P146 -> 0 | T146: 0 | U146: 0 | V146: 1 | W146: 0 | X146: 0 | Y146: 0 | Z146: 0
G147: =IF(AND(F147<>0,$D$31<>0),F147/$D$31,0) -> 0 | H147: - | I147: 0 | J147: 0 | N147: 0 | O147: 0 | P147: 0 | Q147: 0 | T147: 0 | U147: 0 | V147: 1 | W147: 0 | X147: 0 | Y147: 0 | Z147: 0
G148: 0 | H148: - | I148: 0 | J148: 0 | N148: 0 | O148: 0 | P148: 0 | Q148: 0 | T148: 0 | U148: 0 | V148: 1 | W148: 0 | X148: 0 | Y148: 0 | Z148: 0
G149: 0 | H149: - | I149: 0 | J149: 0 | N149: 0 | O149: 0 | P149: 0 | Q149: 0 | T149: 0 | U149: 0 | V149: 1 | W149: 0 | X149: 0 | Y149: 0 | Z149: 0
G150: 0 | H150: - | I150: 0 | J150: 0 | N150: 0 | O150: 0 | P150: 0 | Q150: 0 | T150: 0 | U150: 0 | V150: 1 | W150: 0 | X150: 0 | Y150: 0 | Z150: 0
G151: 0 | H151: - | I151: 0 | J151: 0 | N151: 0 | O151: 0 | P151: 0 | Q151: 0 | T151: 0 | U151: 0 | V151: 1 | W151: 0 | X151: 0 | Y151: 0 | Z151: 0
G152: 0 | H152: - | I152: 0 | J152: 0 | N152: 0 | O152: 0 | P152: 0 | Q152: 0 | T152: 0 | U152: 0 | V152: 1 | W152: 0 | X152: 0 | Y152: 0 | Z152: 0
G153: 0 | H153: - | I153: 0 | J153: 0 | N153: 0 | O153: 0 | P153: 0 | Q153: 0 | T153: 0 | U153: 0 | V153: 1 | W153: 0 | X153: 0 | Y153: 0 | Z153: 0
G154: 0 | H154: - | I154: 0 | J154: 0 | N154: 0 | O154: 0 | P154: 0 | Q154: 0 | T154: 0 | U154: 0 | V154: 1 | W154: 0 | X154: 0 | Y154: 0 | Z154: 0
G155: 0 | H155: - | I155: 0 | J155: 0 | N155: 0 | O155: 0 | P155: 0 | Q155: 0 | T155: 0 | U155: 0 | V155: 1 | W155: 0 | X155: 0 | Y155: 0 | Z155: 0
G156: 0 | H156: - | I156: 0 | J156: 0 | N156: 0 | O156: 0 | P156: 0 | Q156: 0 | T156: 0 | U156: 0 | V156: 1 | W156: 0 | X156: 0 | Y156: 0 | Z156: 0
G157: 0 | H157: - | I157: 0 | J157: 0 | N157: 0 | O157: 0 | P157: 0 | Q157: 0 | T157: 0 | U157: 0 | V157: 1 | W157: 0 | X157: 0 | Y157: 0 | Z157: 0
G158: 0 | H158: - | I158: 0 | J158: 0 | N158: 0 | O158: 0 | P158: 0 | Q158: 0 | T158: 0 | U158: 0 | V158: 1 | W158: 0 | X158: 0 | Y158: 0 | Z158: 0
G159: =IF(AND(F159<>0,$D$31<>0),F159/$D$31,0) -> 0 | H159: - | I159: 0 | J159: 0 | N159: 0 | O159: 0 | P159: 0 | Q159: 0 | T159: 0 | U159: 0 | V159: 1 | W159: 0 | X159: 0 | Y159: 0 | Z159: 0
G160: =IF(AND(F160<>0,$D$31<>0),F160/$D$31,0) -> 0 | H160: - | I160: 0 | J160: 0 | N160: 0 | O160: 0 | P160: 0 | Q160: 0 | T160: 0 | U160: 0 | V160: 1 | W160: 0 | X160: 0 | Y160: 0 | Z160: 0
G161: =IF(AND(F161<>0,$D$31<>0),F161/$D$31,0) -> 0 | H161: - | I161: 0 | J161: 0 | N161: 0 | O161: 0 | P161: 0 | Q161: 0 | T161: 0 | U161: 0 | V161: 1 | W161: 0 | X161: 0 | Y161: 0 | Z161: 0
G162: =IF(AND(F162<>0,$D$31<>0),F162/$D$31,0) -> 0 | H162: - | I162: 0 | J162: 0 | N162: 0 | O162: 0 | P162: 0 | Q162: 0 | T162: 0 | U162: 0 | V162: 1 | W162: 0 | X162: 0 | Y162: 0 | Z162: 0
G163: 0 | H163: - | I163: 0 | J163: 0 | N163: 0 | O163: 0 | P163: 0 | Q163: 0 | T163: 0 | U163: 0 | V163: 1 | W163: 0 | X163: 0 | Y163: 0 | Z163: 0
G164: 0 | H164: - | I164: 0 | J164: =I164*F164 -> 0 | N164: 0 | O164: 0 | P164: 0 | Q164: 0 | T164: 0 | U164: 0 | V164: 1 | W164: 0 | X164: 0 | Y164: 0 | Z164: 0
B165: 2.3 | C165: Superstructure: Roof | E165: - | F165: =SUM(F166:F185) -> 0 | G165: =IF(AND(F165<>0,$D$31<>0),F165/$D$31,0) -> 0 | H165: =SUMPRODUCT((C38:D401="Superstructure: Roof")*G38:G401) -> 0 | I165: - | J165: =SUM(J166:J185) -> 0 | K165: - | L165: - | M165: - | N165: - | O165: =SUM(O166:O185) -> 0 | P165: - | Q165: =SUM(Q166:Q185) -> 0 | R165: - | S165: - | T165: =IF(W165<>0,W165/($F$218+$O$218),0) -> 0 | U165: =IF(Y165<>0,Y165/($F$218+$O$218),0) -> 0 | V165: 1 | W165: =SUM(W166:W185) -> 0 | X165: 0 | Y165: =SUM(Y166:Y185) -> 0 | Z165: 0
B166: 2.3 | C166: Superstructure: Roof | G166: =IF(AND(F166<>0,$D$31<>0),F166/$D$31,0) -> 0 | H166: - | I166: 0 | J166: =I166*F166 -> 0 | N166: =IF(M166<>0,INT(59/M166),0) -> 0 | O166: =F166*N166 -> 0 | P166: 0 | Q166: =O166*P166 -> 0 | T166: 0 | U166: 0 | V166: 1 | W166: =T166*(F166+O166) -> 0 | X166: 0 | Y166: =U166*(F166+O166) -> 0 | Z166: 0
G167: =IF(AND(F167<>0,$D$31<>0),F167/$D$31,0) -> 0 | H167: - | I167: 0 | J167: 0 | N167: =IF(M167<>0,INT(59/M167),0) -> 0 | O167: =F167*N167 -> 0 | P167: 0 | Q167: =O167*P167 -> 0 | T167: 0 | U167: 0 | V167: 1 | W167: 0 | X167: 0 | Y167: 0 | Z167: 0
G168: =IF(AND(F168<>0,$D$31<>0),F168/$D$31,0) -> 0 | H168: - | I168: 0 | J168: 0 | N168: 0 | O168: 0 | P168: 0 | Q168: 0 | T168: 0 | U168: 0 | V168: =1-T168-U168 -> 1 | W168: 0 | X168: =IF(AND(W168<>0,$D$31<>0),W168/$D$31,0) -> 0 | Y168: 0 | Z168: 0
G169: 0 | H169: - | I169: 0 | J169: 0 | N169: 0 | O169: 0 | P169: 0 | Q169: 0 | T169: 0 | U169: 0 | V169: 1 | W169: 0 | X169: 0 | Y169: 0 | Z169: 0
G170: 0 | H170: - | I170: 0 | J170: 0 | N170: 0 | O170: 0 | P170: 0 | Q170: 0 | T170: 0 | U170: 0 | V170: 1 | W170: 0 | X170: 0 | Y170: 0 | Z170: 0
G171: 0 | H171: - | I171: 0 | J171: 0 | N171: 0 | O171: 0 | P171: 0 | Q171: 0 | T171: 0 | U171: 0 | V171: 1 | W171: 0 | X171: 0 | Y171: 0 | Z171: 0
G172: 0 | H172: - | I172: 0 | J172: 0 | N172: 0 | O172: 0 | P172: 0 | Q172: 0 | T172: 0 | U172: 0 | V172: 1 | W172: 0 | X172: 0 | Y172: 0 | Z172: 0
G173: 0 | H173: - | I173: 0 | J173: 0 | N173: 0 | O173: 0 | P173: 0 | Q173: 0 | T173: 0 | U173: 0 | V173: 1 | W173: 0 | X173: 0 | Y173: 0 | Z173: 0
G174: 0 | H174: - | I174: 0 | J174: 0 | N174: 0 | O174: 0 | P174: 0 | Q174: 0 | T174: 0 | U174: 0 | V174: 1 | W174: 0 | X174: 0 | Y174: 0 | Z174: 0
G175: 0 | H175: - | I175: 0 | J175: 0 | N175: 0 | O175: 0 | P175: 0 | Q175: 0 | T175: 0 | U175: 0 | V175: 1 | W175: 0 | X175: 0 | Y175: 0 | Z175: 0
G176: 0 | H176: - | I176: 0 | J176: 0 | N176: 0 | O176: 0 | P176: 0 | Q176: 0 | T176: 0 | U176: 0 | V176: 1 | W176: 0 | X176: 0 | Y176: 0 | Z176: 0
G177: 0 | H177: - | I177: 0 | J177: 0 | N177: 0 | O177: 0 | P177: 0 | Q177: 0 | T177: 0 | U177: 0 | V177: 1 | W177: 0 | X177: 0 | Y177: 0 | Z177: 0
G178: 0 | H178: - | I178: 0 | J178: 0 | N178: 0 | O178: 0 | P178: 0 | Q178: 0 | T178: 0 | U178: 0 | V178: 1 | W178: 0 | X178: 0 | Y178: 0 | Z178: 0
G179: 0 | H179: - | I179: 0 | J179: 0 | N179: 0 | O179: 0 | P179: 0 | Q179: 0 | T179: 0 | U179: 0 | V179: 1 | W179: 0 | X179: 0 | Y179: 0 | Z179: 0
G180: =IF(AND(F180<>0,$D$31<>0),F180/$D$31,0) -> 0 | H180: - | I180: 0 | J180: 0 | N180: 0 | O180: 0 | P180: 0 | Q180: 0 | T180: 0 | U180: 0 | V180: 1 | W180: 0 | X180: 0 | Y180: 0 | Z180: 0
G181: =IF(AND(F181<>0,$D$31<>0),F181/$D$31,0) -> 0 | H181: - | I181: 0 | J181: 0 | N181: 0 | O181: 0 | P181: 0 | Q181: 0 | T181: 0 | U181: 0 | V181: 1 | W181: 0 | X181: 0 | Y181: 0 | Z181: 0
G182: =IF(AND(F182<>0,$D$31<>0),F182/$D$31,0) -> 0 | H182: - | I182: 0 | J182: 0 | N182: 0 | O182: 0 | P182: 0 | Q182: 0 | T182: 0 | U182: 0 | V182: 1 | W182: 0 | X182: 0 | Y182: 0 | Z182: 0
G183: =IF(AND(F183<>0,$D$31<>0),F183/$D$31,0) -> 0 | H183: - | I183: 0 | J183: 0 | N183: 0 | O183: 0 | P183: 0 | Q183: 0 | T183: 0 | U183: 0 | V183: 1 | W183: 0 | X183: 0 | Y183: 0 | Z183: 0
G184: 0 | H184: - | I184: 0 | J184: 0 | N184: 0 | O184: 0 | P184: 0 | Q184: 0 | T184: 0 | U184: 0 | V184: 1 | W184: 0 | X184: 0 | Y184: 0 | Z184: 0
G185: 0 | H185: - | I185: 0 | J185: 0 | N185: 0 | O185: 0 | P185: 0 | Q185: 0 | T185: 0 | U185: 0 | V185: 1 | W185: 0 | X185: 0 | Y185: 0 | Z185: 0
B186: 2.4 | C186: Superstructure: Stairs and Ramps | E186: - | F186: =SUM(F187:F201) -> 0 | G186: =IF(AND(F186<>0,$D$31<>0),F186/$D$31,0) -> 0 | H186: - | I186: - | J186: =SUM(J187:J201) -> 0 | K186: - | L186: - | M186: - | N186: - | O186: =SUM(O187:O201) -> 0 | P186: - | Q186: =SUM(Q187:Q201) -> 0 | R186: - | S186: - | T186: =IF(W186<>0,W186/($F$239+$O$239),0) -> 0 | U186: =IF(Y186<>0,Y186/($F$239+$O$239),0) -> 0 | V186: 1 | W186: =SUM(W187:W201) -> 0 | X186: 0 | Y186: =SUM(Y187:Y201) -> 0 | Z186: 0
B187: 2.4 | C187: Superstructure: Stairs and Ramps | G187: =IF(AND(F187<>0,$D$31<>0),F187/$D$31,0) -> 0 | H187: - | I187: 0 | J187: =I187*F187 -> 0 | N187: =IF(M187<>0,INT(59/M187),0) -> 0 | O187: =F187*N187 -> 0 | P187: 0 | Q187: =O187*P187 -> 0 | T187: 0 | U187: 0 | V187: 1 | W187: 0 | X187: 0 | Y187: 0 | Z187: 0
G188: =IF(AND(F188<>0,$D$31<>0),F188/$D$31,0) -> 0 | H188: - | I188: 0 | J188: 0 | N188: =IF(M188<>0,INT(59/M188),0) -> 0 | O188: =F188*N188 -> 0 | P188: 0 | Q188: =O188*P188 -> 0 | T188: 0 | U188: 0 | V188: 1 | W188: 0 | X188: 0 | Y188: 0 | Z188: 0
G189: =IF(AND(F189<>0,$D$31<>0),F189/$D$31,0) -> 0 | H189: - | I189: 0 | J189: 0 | N189: 0 | O189: 0 | P189: 0 | Q189: 0 | T189: 0 | U189: 0 | V189: 1 | W189: 0 | X189: 0 | Y189: 0 | Z189: 0
G190: 0 | H190: - | I190: 0 | J190: 0 | N190: 0 | O190: 0 | P190: 0 | Q190: 0 | T190: 0 | U190: 0 | V190: 1 | W190: 0 | X190: 0 | Y190: 0 | Z190: 0
G191: 0 | H191: - | I191: 0 | J191: 0 | N191: 0 | O191: 0 | P191: 0 | Q191: 0 | T191: 0 | U191: 0 | V191: 1 | W191: 0 | X191: 0 | Y191: 0 | Z191: 0
G192: 0 | H192: - | I192: 0 | J192: 0 | N192: 0 | O192: 0 | P192: 0 | Q192: 0 | T192: 0 | U192: 0 | V192: 1 | W192: 0 | X192: 0 | Y192: 0 | Z192: 0
G193: 0 | H193: - | I193: 0 | J193: 0 | N193: 0 | O193: 0 | P193: 0 | Q193: 0 | T193: 0 | U193: 0 | V193: 1 | W193: 0 | X193: 0 | Y193: 0 | Z193: 0
G194: 0 | H194: - | I194: 0 | J194: 0 | N194: 0 | O194: 0 | P194: 0 | Q194: 0 | T194: 0 | U194: 0 | V194: 1 | W194: 0 | X194: 0 | Y194: 0 | Z194: 0
G195: 0 | H195: - | I195: 0 | J195: 0 | N195: 0 | O195: 0 | P195: 0 | Q195: 0 | T195: 0 | U195: 0 | V195: 1 | W195: 0 | X195: 0 | Y195: 0 | Z195: 0
G196: 0 | H196: - | I196: 0 | J196: 0 | N196: 0 | O196: 0 | P196: 0 | Q196: 0 | T196: 0 | U196: 0 | V196: 1 | W196: 0 | X196: 0 | Y196: 0 | Z196: 0
G197: 0 | H197: - | I197: 0 | J197: 0 | N197: 0 | O197: 0 | P197: 0 | Q197: 0 | T197: 0 | U197: 0 | V197: 1 | W197: 0 | X197: 0 | Y197: 0 | Z197: 0
G198: 0 | H198: - | I198: 0 | J198: 0 | N198: 0 | O198: 0 | P198: 0 | Q198: 0 | T198: 0 | U198: 0 | V198: 1 | W198: 0 | X198: 0 | Y198: 0 | Z198: 0
G199: 0 | H199: - | I199: 0 | J199: 0 | N199: 0 | O199: 0 | P199: 0 | Q199: 0 | T199: 0 | U199: 0 | V199: 1 | W199: 0 | X199: 0 | Y199: 0 | Z199: 0
G200: 0 | H200: - | I200: 0 | J200: 0 | N200: 0 | O200: 0 | P200: 0 | Q200: 0 | T200: 0 | U200: 0 | V200: 1 | W200: 0 | X200: 0 | Y200: 0 | Z200: 0
G201: =IF(AND(F201<>0,$D$31<>0),F201/$D$31,0) -> 0 | H201: - | I201: 0 | J201: 0 | N201: 0 | O201: 0 | P201: 0 | Q201: 0 | T201: 0 | U201: 0 | V201: 1 | W201: 0 | X201: 0 | Y201: 0 | Z201: 0
B202: 2.5 | C202: Superstructure: External Walls | E202: - | F202: =SUM(F203:F222) -> 0 | G202: =IF(AND(F202<>0,$D$31<>0),F202/$D$31,0) -> 0 | H202: =SUMPRODUCT((C38:D401="Superstructure: External Walls")*G38:G401)+SUMPRODUCT((C38:D401="Superstructure: Windows and External Doors")*G38:G401) -> 0 | I202: - | J202: =SUM(J203:J222) -> 0 | K202: - | L202: - | M202: - | N202: - | O202: =SUM(O203:O222) -> 0 | P202: - | Q202: =SUM(Q203:Q222) -> 0 | R202: - | S202: - | T202: =IF(W202<>0,W202/($F$255+$O$255),0) -> 0 | U202: =IF(Y202<>0,Y202/($F$255+$O$255),0) -> 0 | V202: 1 | W202: =SUM(W203:W222) -> 0 | X202: 0 | Y202: =SUM(Y203:Y222) -> 0 | Z202: 0
B203: 2.5 | C203: Superstructure: External Walls | G203: =IF(AND(F203<>0,$D$31<>0),F203/$D$31,0) -> 0 | H203: - | I203: 0 | J203: =I203*F203 -> 0 | N203: =IF(M203<>0,INT(59/M203),0) -> 0 | O203: =F203*N203 -> 0 | P203: 0 | Q203: =O203*P203 -> 0 | T203: 0 | U203: 0 | V203: 1 | W203: =T203*(F203+O203) -> 0 | X203: 0 | Y203: =U203*(F203+O203) -> 0 | Z203: 0
G204: =IF(AND(F204<>0,$D$31<>0),F204/$D$31,0) -> 0 | H204: - | I204: 0 | J204: 0 | N204: =IF(M204<>0,INT(59/M204),0) -> 0 | O204: =F204*N204 -> 0 | P204: 0 | Q204: =O204*P204 -> 0 | T204: 0 | U204: 0 | V204: 1 | W204: 0 | X204: 0 | Y204: 0 | Z204: 0
G205: =IF(AND(F205<>0,$D$31<>0),F205/$D$31,0) -> 0 | H205: - | I205: 0 | J205: 0 | N205: 0 | O205: 0 | P205: 0 | Q205: 0 | T205: 0 | U205: 0 | V205: 1 | W205: 0 | X205: 0 | Y205: 0 | Z205: 0
G206: 0 | H206: - | I206: 0 | J206: 0 | N206: 0 | O206: 0 | P206: 0 | Q206: 0 | T206: 0 | U206: 0 | V206: 1 | W206: 0 | X206: 0 | Y206: 0 | Z206: 0
... 229 more rows

Sheet Version Control
A1: Greater London Authority - Circular Economy Statement template
A3: Version Control
A4: Current Issue | B4: 1.1
A5: Date | B5: 2023-06-01
A6: Author | B6: Greater London Authority
A8: Update Version | B8: 1.1
A9: Update Location | B9: Description of changes made to GLA Circular Economy Statement Template
A10: Outline Application Stage / Detailed Application Stage (Cell B70) | B10: Update to wording to reference the Circular Economy Principles by Building Layer table.
A11: Outline Application Stage / Detailed Application Stage (Cell B88) Post-Construction Stage (B35) | B11: Added wording to clarify the approach should the number of entries exceed the number of rows provided.
A12: Outline Application Stage / Detailed Application Stage / Post-Construction Stage (Bill of Mateirals, Column I and P) | B12: Where it is anticipated this figure will come directly from OneClick, eTool LCA or other similar software, the Construction Waste Factor in Columns I and P is now input at a percentage for clarity and consistency.
A13: Outline Application Stage / Detailed Application Stage (Bill of Materials, Columns K and L) | B13: Cell colour has been amended to show that these are pioneering considerations.
A14: Outline Application Stage / Detailed Application Stage / Post-Construction Stage (Bill of Materials, Column N) | B14: Calculation has been adjusted so that components with an Expected Lifespan of 60-years are not counted as being replaced over the assumed 60-year lifecycle period.
A15: Outline Application Stage / Detailed Application Stage / Post-Construction Stage (Bill of Materials, Column O) | B15: Calculation has been updated to show correct multiplication of Material Quantity by Number of Replacements.
A16: Outline Application Stage / Detailed Application Stage / Post-Construction Stage (Bill of Materials, Column Q) | B16: Calculation has been updated to show correct multiplication of Repair and Replacement quantities of materials by Construction Waste Factor.
A17: Detailed Application Stage (Cells E470, E471 and E477) / Post-Construction Stage (Cell E417, E418 and E424) | B17: Calculations in cells updated in line with the calculations in the Outline Application Stage tab.
A18: Outline Application Stage / Detailed Application Stage (Cell Q455) / Post-Construction Stage (Cell Q402) | B18: Calculation has been updated to show correct total for Construction Waste (Module B).
A19: Outline Application Stage / Detailed Application Stage (Cell W455, X455, Y455 and Z455) / Post-Construction Stage (Cell W402, X402, Y402 and Z402) | B19: Calculation has been updated to show correct total for Benefits Beyond the System Boundary (Module D).
A20: Pre-App Stage / Outline Application Stage / Detailed Application Stage / Post-Construction Stage | B20: Accessibility updates across all tabs wherever possible to provide alt text, address low contrast text/backgrounds and merged cells.

Sheet Drop- down list (hidden)
A1: Number of Use Types | B1: Yes/No | C1: Layers | D1: Building element category reference | E1: Building element category | F1: Other
A2: 1 | B2: Yes | C2: Site | D2: 0.1 | E2: Demolition: Toxic/Hazardous/Contaminated Material Treatment | F2: It is accepted that the Reserved Matters Reporting will be conditioned
A3: 2 | B3: No | C3: Substructure | D3: 0.2 | E3: Major Demolition Works | F3: It is accepted that the Post Construction Reporting will be conditioned
A4: 3 | B4: Yes, in whole | C4: Super- Structure | D4: 0.3 | E4: Temporary Support to Adjacent Structures
A5: 4 | B5: Yes, in part | C5: Shell/ Skin | D5: 0.4 | E5: Specialist Ground Works
A6: 5 | B6: No | C6: Services | D6: 1 | E6: Substructure
A7: 6 | C7: Space | D7: 2.1 | E7: Superstructure: Frame
A8: 7 | C8: Stuff | D8: 2.2 | E8: Superstructure: Upper Floors
A9: 8 | C9: Construction Stuff | D9: 2.3 | E9: Superstructure: Roof
A10: 9 | D10: 2.4 | E10: Superstructure: Stairs and Ramps
A11: 10 | C11: Yes | D11: 2.5 | E11: Superstructure: External Walls
A12: 11 | C12: No | D12: 2.6 | E12: Superstructure: Windows and External Doors
A13: 12 | D13: 2.7 | E13: Superstructure: Internal Walls and Partitions
A14: 13 | D14: 2.8 | E14: Superstructure: Internal Doors
A15: 14 | D15: 3 | E15: Finishes
A16: 15 | D16: 4 | E16: Fittings, furnishings & equipment (FFE)
D17: 5 | E17: Services (MEP)
D18: 6 | E18: Prefabricated Buildings and Building Units
D19: 7 | E19: Work to Existing Building
D20: 8 | E20: External works
